{"text_format":"1","workbook":"xlsx","n_sheets":5,"sheets":["Quiz","Musée","Diapo","Mouvements","Data"],"not_rendered":{"charts":0,"images":137,"macros":1,"external_links":0,"defined_names":7,"comments":1,"pivot_tables":0},"unopened":[],"bounds":{"document_bytes":16777216,"sheet_cells":100000,"rows_first":2000,"rows_last":500,"rows_between":2000,"halvings":0,"cell_chars":16384,"cell_head_chars":4096},"cells_cut":0,"cells_raw":0,"read":"whole","date_system":"1900"}

{"sheet":"Quiz","index":0,"n_rows":120,"n_cols":43,"rows_kept":120,"cut":false,"hidden":false,"merged":[[12,6,12,7],[1,0,2,0],[113,2,113,3],[110,4,110,8],[111,4,111,8],[112,4,112,8],[113,4,113,8],[93,4,93,8],[94,4,94,8],[110,2,110,3],[111,2,111,3],[112,2,112,3],[105,4,105,8],[106,4,106,8],[107,4,107,8],[108,4,108,8],[109,4,109,8],[98,4,98,8],[99,4,99,8],[88,2,88,3],[89,2,89,3],[90,2,90,3],[91,2,91,3],[92,2,92,3],[93,2,93,3],[94,2,94,3],[95,2,95,3],[88,4,88,8],[89,4,89,8],[90,4,90,8],[91,4,91,8],[92,4,92,8],[96,2,96,3],[83,4,83,8],[84,4,84,8],[85,4,85,8],[86,4,86,8],[87,4,87,8],[83,2,83,3],[84,2,84,3],[85,2,85,3],[86,2,86,3],[87,2,87,3],[100,4,100,8],[101,4,101,8],[102,4,102,8],[103,4,103,8],[104,4,104,8],[17,26,19,26],[1,24,1,25],[79,26,104,26],[10,3,10,5],[3,2,3,6],[7,3,7,5],[9,3,9,5],[1,1,1,7],[4,6,6,6],[8,3,8,5],[13,1,13,2],[98,2,98,3],[99,2,99,3],[95,4,95,8],[96,4,96,8],[97,4,97,8],[80,2,80,3],[79,2,79,3],[79,4,79,8],[81,2,81,3],[82,2,82,3],[80,4,80,8],[81,4,81,8],[82,4,82,8],[97,2,97,3],[114,2,114,3],[115,2,115,3],[116,2,116,3],[104,2,104,3],[100,2,100,3],[101,2,101,3],[102,2,102,3],[103,2,103,3],[105,2,105,3],[106,2,106,3],[107,2,107,3],[108,2,108,3],[109,2,109,3],[117,2,117,3],[118,2,118,3],[114,4,114,8],[115,4,115,8],[116,4,116,8],[117,4,117,8],[118,4,118,8]]}
[]
[100,{"$f":"IF(AF4<1,\"\",IF(AO6=2,\"À quel mouvement appartient cette œuvre ?\",\"Connaissez-vous l'auteur de cette œuvre ?\"))","v":""},null,null,null,null,null,null,null,null,null,null,null,null,null,null,null,null,null,null,null,null,null,null,null,null,{"$f":"IF(AF4=0,\"\",\"Dimensions de la peinture : \"&AL6&\" cm.\")","v":"Dimensions de la peinture : 0 x 0 cm."},"AB","AC","AD","AE","AF","AG"]
[null,null,null,null,null,null,null,null,null,null,null,null,null,null,null,null,null,null,null,null,null,null,null,null,null,null,"                 1 mètre                                2 mètres                                          "]
[null,null,null,null,null,null,null,null,null,null,null,null,null,null,null,null,null,null,null,null,null,null,null,null,null,null,null,null,null,null,"nbques pour test",-1,null,null,null,null,null,"Hauteur","Largeur"]
[null,null,null,null,null,null,{"$f":"IF(OR(AO6=1,AO6=3),IF(AF6=0,AF10,IF(AF8=\"Non\",\"D\",\"C\")),IF(AO5=0,AF10,IF(AO9=\"Non\",\"D\",\"C\")))","v":""},null,null,null,null,null,null,null,null,null,null,null,null,null,null,null,null,null,null,null,{"$f":"IF($AF$4>1,\"\",\"1. Cliquer sur 'Nouvelle série' pour débuter un QUIZ. Choisir Peintres ou Mouvements\")","v":"1. Cliquer sur 'Nouvelle série' pour débuter un QUIZ. Choisir Peintres ou Mouvements"},null,null,"Nombre tiré pour image du musée",null,45,"AF5 -de 1 à 40                                Boutons séries :",1,"Série :",1,"Case à cocher liste",{"$f":"VLOOKUP($AF$5,chrono,$AJ$8)","v":0},{"$f":"VLOOKUP($AF$5,chrono,$AJ$8+1)","v":0},"Renvoi du menu",0,"Texte pour réponse :",{"$f":"IF(OR(AO6=1,AO6=3),VLOOKUP(AF5,chrono,AJ7),VLOOKUP(AF5,chrono,2))","v":"   "}]
[null,null,null,null,null,null,null,null,null,null,null,null,null,null,null,null,null,null,null,null,null,null,null,null,null,null,{"$f":"IF($AF$4>1,\"\",\"2. Cliquer sur Tirage (Ctrl + q)   ou  clic sur une peinture pour afficher une nouvelle oeuvre.\")","v":"2. Cliquer sur Tirage (Ctrl + q)   ou  clic sur une peinture pour afficher une nouvelle oeuvre."},null,null,"Nombre renvoyé par le menu déroulant",null,0,"AF6  Renvoie 2 pour 1 de la liste",null,"déc image",{"$f":"IF(AJ5=1,0,IF(AJ5=2,7,14))","v":0},null,{"$f":"AL5&\" x \"&AM5","v":"0 x 0"},{"$f":"IF(OR(AL5>100,AM5>100),1,0)","v":0},"Bouton Peintre ou Style",3,"menu déroulant bis",{"$f":"IF(OR(AO6=1,AO6=3),AF5,AO7)","v":45}]
[null,null,null,null,null,null,null,null,null,null,null,null,null,null,null,null,null,null,null,null,null,null,null,null,null,null,{"$f":"IF($AF$4>1,\"\",\"3. Choisir le peintre ou le mouvement dans le menu déroulant.\")","v":"3. Choisir le peintre ou le mouvement dans le menu déroulant."},null,null,"Correspondance menu",null,{"$f":"IF(AF6=0,0,VLOOKUP(AF6 -1,Alpha,2))","v":0},"AF7",null,"déc. Tab",{"$f":"IF(AJ5=1,3,IF(AJ5=2,6,9))","v":3},"Menu en 2 parties",null,{"$f":"IF(AM5=0,\"H\",IF(AM5/1.15>AL5,\"L\",\"H\"))","v":"H"},"La bonne réponse a est  : ",{"$f":"VLOOKUP($AF$5,chrono,14)","v":0},"La bonne réponse b est :",{"$f":"VLOOKUP($AF$5,chrono,15)","v":0}]
[null,null,null,{"$f":"IFERROR(IF(AQ6=0,\"\",IF(AQ9=\"OK\",AQ5,\"\")),\" \" )","v":""},null,null,null,null,null,null,null,null,null,null,null,null,null,null,null,null,null,null,null,null,null,null,{"$f":"IF($AF$4>1,\"\",\"    Le pouce vert en haut indique que le choix est JUSTE.\")","v":"    Le pouce vert en haut indique que le choix est JUSTE."},null,null,"Juste ou faux",null,{"$f":"IF(AO6=3,AF12,AF11)","v":"Non"},"AF8",null,"dec dim",{"$f":"IF(AJ5=1,16,IF(AJ5=2,18,20))","v":16},null,{"$f":"IF(AF5=45,1,IF(AF4=0,0,1))","v":1},"G","Nb points max.",{"$f":"IF(G14>AF4-1,(AF4-1)*1.5,AF4-1)","v":-3},"Masque, vrai-faux",false]
[null,null,null,{"$f":"IF(AF5=41,\"Réponse avec le menu ci-dessus\",IF(AF4>AJ10,\"La série est terminée !\",\"\"))","v":""},null,null,null,{"$f":"IF(AF9=FALSE,\"\",VLOOKUP(AF5,chrono,IF(OR(AO6=1,AO6=3),22,27)))","v":""},null,null,null,null,null,null,null,null,null,null,null,null,null,null,null,null,null,null,null,null,"musée","Indice",null,null,"AF9",null,null,null,"Tirage sans réponse :",null,null,"Juste au faux",{"$f":"IF(OR(AO5-1=AO7,  AO5-1=AQ7),\"OK\",\"non\")","v":"non"},"couleur de la main",{"$f":"IF(OR(AO6=1,AO6=3),AF8,AO9)","v":"Non"}]
[null,null,null,{"$f":"IF(AF7=0,\"\",IF(AF8=\"OK\",VLOOKUP(AF5,chrono,AJ7+1),\"\"))","v":""},null,null,null,null,null,null,null,null,null,null,null,null,null,null,null,null,null,null,null,null,null,null,{"$f":"IF($AF$4>1,\"\",\"L'indice donne une fourchette pour la première lettre du nom du peintre\")","v":"L'indice donne une fourchette pour la première lettre du nom du peintre"},null,null,null,"Souris :",{"$f":"IF(AF5>37,\"\",IF(AF6=0,8,\"\"))","v":""},null,null,"nb total de Q",40]
[null,null,null,{"$f":"IF(AF7=0,\"\",IF(AF8=\"OK\",VLOOKUP(AF5,chrono,12),\"\"))","v":""},null,null,null,null,null,null,null,null,null,null,null,null,null,null,null,null,null,null,null,null,null,null,{"$f":"IF($AF$4>1,\"\",\"ou du mouvement, mais ça vous coûtera un demi-point !\")","v":"ou du mouvement, mais ça vous coûtera un demi-point !"},null,null,"Juste ou faux",null,{"$f":"(IF($AF$7<>$AF$5,\"Non\",\"OK\"))","v":"Non"}]
[null,null,null,null,null,null,null,null,null,null,null,null,null,null,null,null,null,null,null,null,null,null,null,null,null,null,null,null,null,"Juste ou faux ABCD",null,{"$f":"(IF(AN30=0,\"Non\",\"OK\"))","v":"Non"}]
[null,null,null,null,null,null,"Résultat final",null,null,null,null,null,null,null,null,null,null,null,null,null,null,null,null,null,null,null,{"$f":"IF($AF$4>1,\"\",\"Après le 'Tirage', le système attend une réponse. Si vous souhaitez passer les oeuvres\")","v":"Après le 'Tirage', le système attend une réponse. Si vous souhaitez passer les oeuvres"}]
[null,{"$f":"IF(AF4>AJ10,AJ10&\"/ \"&AJ10,AF4&\"/ \"&AJ10&\"           \")","v":"-1/ 40           "},null,null,null,null,0,{"$f":"IF(G14>1,\"points / \"&AO8,\"point\")","v":"point"},"t",null,null,null,null,null,null,null,null,null,null,null,null,null,null,null,null,null,{"$f":"IF($AF$4>1,\"\",\"sans avoir à  choisir avec le menu, cochez la case 'Réponse orale'.\")","v":"sans avoir à  choisir avec le menu, cochez la case 'Réponse orale'."}]
[null,null,null,null,null,null,"(Ctl + q)"]
[null,null,null,null,null,null,null,null,null,null,null,null,null,null,null,null,null,null,null,null,null,null,null,null,null,null,{"$f":"IF($AF$4>1,\"\",\"Pendant ou à la fin d'une série la liste des tirages peut-être éditée avec la case\")","v":"Pendant ou à la fin d'une série la liste des tirages peut-être éditée avec la case"}]
[null,null,null,null,null,null,null,null,null,null,null,null,null,null,null,null,null,null,null,null,null,null,null,null,null,null,{"$f":"IF($AF$4>1,\"\",\"'Liste de la série en cours'. Les erreurs y sont signalées et les peintures revues une à une.\")","v":"'Liste de la série en cours'. Les erreurs y sont signalées et les peintures revues une à une."}]
[null,null,null,null,null,null,null,null,null,null,null,null,null,null,null,null,null,null,null,null,null,null,null,null,null,null,{"$f":"IF($AF$4>2,\"\",\"Si vous répondez à  Peintres et à  Mouvements dans le même tirage, cliquez sur la case 'Solution masquée' pour cacher les réponses !\")","v":"Si vous répondez à  Peintres et à  Mouvements dans le même tirage, cliquez sur la case 'Solution masquée' pour cacher les réponses !"}]
[]
["a"]
[]
[null,null,null,null,null,null,null,null,null,null,null,null,null,null,null,null,null,null,null,null,null,null,null,null,null,null,{"$f":"IF($AF$4>1,\"\",\"-> Pour rafraîchir votre culture, regardez la feuille des miniatures 'Musée' ou la feuille 'Diapo'.\" )","v":"-> Pour rafraîchir votre culture, regardez la feuille des miniatures 'Musée' ou la feuille 'Diapo'."},null,null,null,null,null,null,"Quiz ABCD"]
[null,null,null,null,null,null,null,null,null,null,null,null,null,null,null,null,null,null,null,null,null,null,null,null,null,null,{"$f":"IF($AF$4>1,\"\",\"    Trois œuvres célèbres de 40 peintres de 1303 à 1989 attendent votre visite.\")","v":"    Trois œuvres célèbres de 40 peintres de 1303 à 1989 attendent votre visite."},null,null,null,null,null,null,34,35,36,37,38,39,40,41]
[null,null,null,null,null,null,null,null,null,null,null,null,null,null,null,null,null,null,null,null,null,null,null,null,null,null,{"$f":"IF($AF$4>1,\"\",\"-> La feuille 'Mouvements' donne les clés de l'histoire de l'art.\")","v":"-> La feuille 'Mouvements' donne les clés de l'histoire de l'art."},null,null,null,null,null,null,"G","H","I","J/10","K","L","M"]
[null,null,null,null,null,null,null,null,null,null,null,null,null,null,null,null,null,null,null,null,null,null,null,null,null,null,null,null,null,null,null,null,null,25,"Tirage abcd",1,30]
[null,null,null,null,null,null,null,null,null,null,null,null,null,null,null,null,null,null,null,null,null,null,null,null,null,null,null,null,null,null,null,null,null,26,null,2,9]
[null,null,null,null,null,null,null,null,null,null,null,null,null,null,null,null,null,null,null,null,null,null,null,null,null,null,null,null,null,null,null,null,null,27,null,3,34]
[null,null,null,null,null,null,null,null,null,null,null,null,null,null,null,null,null,null,null,null,null,null,null,null,null,null,null,null,null,null,null,null,null,28,null,4,23,null,"rep ABCD",{"$f":"AF6","v":0}]
["© Y. Péguiron - version 05.05.2020",null,null,null,null,null,null,null,null,null,null,null,null,null,null,null,null,null,null,null,null,null,null,null,null,null,null,null,null,null,null,null,null,29,null,5,0,null,"v ABCD",{"$f":"MATCH(5,AN31:AN35,0)","v":5}]
[null,null,null,null,null,null,null,null,null,null,null,null,null,null,null,null,null,null,null,null,null,null,null,null,null,null,null,null,null,null,null,null,null,30,null,"rang",null,null,"Juste =1",{"$f":"IF(AN28=AN29,1,0)","v":0}]
[null,null,null,null,null,null,null,null,null,null,null,null,null,null,null,null,null,null,null,null,null,null,null,null,null,null,null,null,null,null,null,null,null,31,"A",{"$f":"RANK(AK25,$AK$25:$AK$29)","v":2},{"$f":"VLOOKUP(AJ31,$AJ$25:$AK$29,2)","v":9},1,{"$f":"\"A - \"&VLOOKUP(AK31,Data!$A$3:$B$42,2)","v":"A - Pierre-Paul Rubens"},{"$f":"AJ31","v":2}]
[null,null,null,null,null,null,null,null,null,null,null,null,null,null,null,null,null,null,null,null,null,null,null,null,null,null,null,null,null,null,null,null,null,32,"B",{"$f":"RANK(AK26,$AK$25:$AK$29)","v":4},{"$f":"VLOOKUP(AJ32,$AJ$25:$AK$29,2)","v":23},2,{"$f":"\"B - \"&VLOOKUP(AK32,Data!$A$3:$B$42,2)","v":"B - Camille Pissaro"},{"$f":"AJ32","v":4}]
[null,null,null,null,null,null,null,null,null,null,null,null,null,null,null,null,null,null,null,null,null,null,null,null,null,null,null,null,null,null,null,null,null,33,"C",1,30,3,{"$f":"\"C - \"&VLOOKUP(AK33,Data!$A$3:$B$42,2)","v":"C - Vassily Kandinsky"},1]
[null,null,null,null,null,null,null,null,null,null,null,null,null,null,null,null,null,null,null,null,null,null,null,null,null,null,null,null,null,null,null,null,null,34,"D",3,34,4,{"$f":"\"D - \"&VLOOKUP(AK34,Data!$A$3:$B$42,2)","v":"D - Juan Gris"},3]
[null,null,null,null,null,null,null,null,null,null,null,null,null,null,null,null,null,null,null,null,null,null,null,null,null,null,null,null,null,null,null,null,null,35,"E",5,0,5,{"$f":"\"E - \"&VLOOKUP(AK35,Data!$A$3:$B$42,2)","v":{"$error":"#N/A"}},5]
[null,null,null,null,null,null,null,null,null,null,null,null,null,null,null,null,null,null,null,null,null,null,null,null,null,null,null,null,null,null,null,null,null,null,null,null,null,"lettre juste",{"$f":"VLOOKUP(AN29+30,AH31:AI35,2)","v":"E"}]
[]
[]
[]
[]
[]
[]
[]
[]
[]
[]
[]
[]
[]
[]
[]
[]
[]
[]
[]
[]
[]
[]
[]
[]
[]
[]
[]
[]
[]
[]
[]
[]
[]
[]
[]
[]
[]
[]
[]
[null,null,null,null,null,null,null,null,null,null,null,null,null,"H","L"]
[null,null,null,null,null,null,null,null,null,null,null,null,{"$f":"N77&\"x\"&O77","v":"1x1"},{"$f":"IF(N79=0,1,VLOOKUP(M79,$B$80:$O$120,13))","v":1},{"$f":"IF(N79=0,1,VLOOKUP(M79,$B$80:$O$119,14))","v":1}]
[null,null,null,null,null,null,null,null,null,null,null,"?","déroul","image","décal"]
[null,"Liste des tirages de la dernière série :",null,null,null,null,null,null,null,"serie","decal","musee",1,{"$f":"VLOOKUP(M79,$B$80:$M$120,12)","v":0},{"$f":"VLOOKUP(M79,B80:L120,11)","v":14},"x","decdim"]
[0,1,{"$f":"IF(A80=0,\"\",T80&VLOOKUP(A80,chrono,2))","v":""},null,{"$f":"IF(A80=0,\"\",VLOOKUP(A80,chrono,IF($AO$6=1,K80,12))&\"   -  \"&VLOOKUP(A80,chrono,K80+1))","v":""},null,null,null,null,0,{"$f":"IF(J80=1,3,IF(J80=2,6,9))","v":9},{"$f":"IF(J80=1,0,IF(J80=2,7,14))","v":14},{"$f":"A80","v":0},{"$f":"VLOOKUP(A80,chrono,Q80)","v":1},{"$f":"VLOOKUP(A80,chrono,Q80+1)","v":1},"x",{"$f":"IF(J80=1,16,IF(J80=2,18,20))","v":20},null,null,{"$f":"IF(S80=\"\",\"\",S80&\" - \")","v":""}]
[0,2,"",null,"",null,null,null,null,0,{"$f":"IF(J81=1,3,IF(J81=2,6,9))","v":9},{"$f":"IF(J81=1,0,IF(J81=2,7,14))","v":14},{"$f":"A81","v":0},1,1,"x",{"$f":"IF(J81=1,16,IF(J81=2,18,20))","v":20},null,null,{"$f":"IF(S81=\"\",\"\",S81&\" - \")","v":""}]
[0,3,"",null,"",null,null,null,null,0,9,14,0,1,1,"x",20,null,null,""]
[0,4,"",null,"",null,null,null,null,0,9,14,0,1,1,"x",20,null,null,""]
[0,5,"",null,"",null,null,null,null,0,9,14,0,1,1,"x",20,null,null,""]
[0,6,"",null,"",null,null,null,null,0,9,14,0,1,1,"x",20,null,null,""]
[0,7,"",null,"",null,null,null,null,0,9,14,0,1,1,"x",20,null,null,""]
[0,8,"",null,"",null,null,null,null,0,9,14,0,1,1,"x",20,null,null,""]
[0,9,"",null,"",null,null,null,null,0,9,14,0,1,1,"x",20,null,null,""]
[0,10,"",null,"",null,null,null,null,0,9,14,0,1,1,"x",20,null,null,""]
[0,11,"",null,"",null,null,null,null,0,9,14,0,1,1,"x",20,null,null,""]
[0,12,"",null,"",null,null,null,null,0,9,14,0,1,1,"x",20,null,null,""]
[0,13,"",null,"",null,null,null,null,0,9,14,0,1,1,"x",20,null,null,""]
[0,14,"",null,"",null,null,null,null,0,9,14,0,1,1,"x",20,null,null,""]
[0,15,"",null,"",null,null,null,null,0,9,14,0,1,1,"x",20,null,null,""]
[0,16,"",null,"",null,null,null,null,0,9,14,0,1,1,"x",20,null,null,""]
[0,17,"",null,"",null,null,null,null,0,9,14,0,1,1,"x",20,null,null,""]
[0,18,"",null,"",null,null,null,null,0,9,14,0,1,1,"x",20,null,null,""]
[0,19,"",null,"",null,null,null,null,0,9,14,0,1,1,"x",20,null,null,""]
[0,20,"",null,"",null,null,null,null,0,9,14,0,1,1,"x",20,null,null,""]
[0,21,"",null,"",null,null,null,null,0,9,14,0,1,1,"x",20,null,null,""]
[0,22,"",null,"",null,null,null,null,0,9,14,0,1,1,"x",20,null,null,""]
[0,23,"",null,"",null,null,null,null,0,9,14,0,1,1,"x",20,null,null,""]
[0,24,"",null,"",null,null,null,null,0,9,14,0,1,1,"x",20,null,null,""]
[0,25,"",null,"",null,null,null,null,0,9,14,0,1,1,"x",20,null,null,""]
[0,26,"",null,"",null,null,null,null,0,9,14,0,1,1,"x",20,null,null,""]
[0,27,"",null,"",null,null,null,null,0,9,14,0,1,1,"x",20,null,null,"",null,null,null,null,null,null,{"$f":"IF(N79=0,\"\",VLOOKUP(N79,chrono,2))","v":""}]
[0,28,"",null,"",null,null,null,null,0,9,14,0,1,1,"x",20,null,null,"",null,null,null,null,null,null,{"$f":"IF(N79=0,\"\",VLOOKUP(N79,chrono,12))","v":""}]
[0,29,"",null,"",null,null,null,null,0,9,14,0,1,1,"x",20,null,null,"",null,null,null,null,null,null,"                                                                                                                                                                                                         "]
[0,30,"",null,"",null,null,null,null,0,9,14,0,1,1,"x",20,null,null,""]
[0,31,"",null,"",null,null,null,null,0,9,14,0,1,1,"x",20,null,null,""]
[0,32,"",null,"",null,null,null,null,0,9,14,0,1,1,"x",20,null,null,"",null,null,null,null,null,null,"                        Revoir la peinture no :"]
[0,33,"",null,"",null,null,null,null,0,9,14,0,1,1,"x",20,null,null,""]
[0,34,"",null,"",null,null,null,null,0,9,14,0,1,1,"x",20,null,null,"",null,null,null,null,null,null,"                1 mètre"]
[0,35,"",null,{"$f":"IF(A114=0,\"\",VLOOKUP(A114,chrono,IF($AO$6=1,K114,12))&\"   -  \"&VLOOKUP(A114,chrono,K114+1))","v":""},null,null,null,null,0,9,14,0,1,1,"x",20,null,null,""]
[0,36,"",null,"",null,null,null,null,0,9,{"$f":"IF(J115=1,0,IF(J115=2,7,14))","v":14},{"$f":"A115","v":0},1,1,"x",20,null,null,"",null,null,null,null,null,null,"<-- Dimension du tableau en cm"]
[0,37,"",null,"",null,null,null,null,0,9,14,0,1,1,"x",20,null,null,""]
[0,38,"",null,"",null,null,null,null,0,9,14,0,1,1,"x",20,null,null,""]
[0,39,"",null,"",null,null,null,null,0,9,14,0,1,1,"x",20,null,null,""]
[0,40,"",null,"",null,null,null,null,0,9,{"$f":"IF(J119=1,0,IF(J119=2,7,14))","v":14},{"$f":"A119","v":0},1,1,"x",20,null,null,""]
[null,41,null,null,null,null,null,null,null,null,null,null,null,{"$f":"VLOOKUP(A120,chrono,K120+11)","v":"   "},{"$f":"VLOOKUP(A120,chrono,K120+12)","v":"    "},"x",null,null,null,""]

{"sheet":"Musée","index":1,"n_rows":198,"n_cols":53,"rows_kept":198,"cut":false,"hidden":false,"merged":[[2,0,5,0],[9,0,12,0],[16,0,19,0]]}
[null,1,2,3,4,5,6,7,8,9,10,11,12,13,14,15,16,17,18,19,20,21,22,23,24,25,26,27,28,29,30,31,32,33,34,35,36,37,38,39,40,41,42,43,44,45,46,50,51,52,53,54,55]
[null,null,null,null,null,null,null,null,null,null,null,null,null,null,null,null,null,null,null,null,null,null,null,null,null,null,null,null,null,null,null,null,null,null,null,null,null,null,null,null,null,null,"Bravo !",null,null,"                                                                                                                                                                 ","OK !   Nouvelle série en préparation…                  Voir infos ci-contre --->"]
["A","Bondone Giotto","Giovanni Bellini","Jérôme Bosch","Le Titien","Pieter Brueghel","Le Greco","Le Tintoret","Le Caravage","Pierre-Paul Rubens","Georges de La Tour","Charles Le Brun","François Boucher","Thomas Gainsborough","Francisco Goya",{"$f":"P17","v":"Johann-Heinrich Füssli"},"Jean-Auguste-Dominique Ingres","Théodore Géricault","Caspar-David Friedrich","Camille Corot","Honoré Daumier","Jean-François Millet","Berthe Morisot","Camille Pissaro","Theodore Robinson",{"$f":"Z10","v":"Paul Signac"},"Gustav Klimt","Edvard Munch","Ernest-Ludwig Kirchner","Félix Vallotton","Vassily Kandinsky","René Auberjonois","Maurice de Vlaminck","Fernand Léger","Juan Gris","Max Ernst","Yves Tanguy","Jackson Pollock","Jean Dubuffet","Jean Solombre","Vladimir Volegov",null,null,null,null,null,null,null,null,null,"Antoine van Dyck",null,"Franz Muller-Gossen"]
[null,1303,1460,1482,1525,1563,1580,1547,1597,1609,1640,1644,1740,1753,1777,1786,1819,1817,1820,1830,1860,1857,1875,1878,1888,1892,1907,1892,1912,1908,1916,1913,1906,1914,1911,1921,1940,1943,1962,1987,2015,null,null,null,null,null,null,null,null,null,1617,null,1920]
[null,"Adoration des Mages","Le Sang du Rédempteur","Fantasia Moral","La Bachanale des Andriens","La Tour de Babel","L'Extase de Saint-François","Miracle de l'Esclave","L'Extase de Saint-François","Samson et Dalilah","L'Education de la Vierge","La Déification d'Enée","Le Triomphe de Vénus","John Plampin","Le Parasol vert","Œdipe maudissant son fils, Polynices","Roger délivrant Angélique","Scène de Déluge","Barque fluviale dans le Brouillard","Honfleur, Calvaire","Le Soulèvement","Les Glaneuses","Dans la salle à Manger","Le Jardin potager à l'Hermitage","La Vachère","Jeunes Provençales au Puits","Portrait d'Adèle Bloch-Bauer","Désespoir","Chasseur de Mouettes","L'Enlèvement d'Europe","Une voix inconnue","La Course au Clocher","La Seine é Chatou","La Sortie des Ballets Russes","Maison à Paris","L'Éléphant de Célèbres","La Lumière, la Solitude","The She Wolf","L'Instant propice","L'Apprentissage de la Nuit","Costa Brava Dream",null,null,null,null,null,null,null,null,null,"Silène ivre",null,"Dampfschiff auf stürmischer See"]
[null,"Chapelle des Scovegni - Padoue","National Gallery - Londres","Musée du Prado - Madrid","Musée du Prado - Madrid","Musée Boijmans Van Beuningen - Rotterdam","Muzeum Naradowe - Krakovie","Gallerie dell'Accademia - Venise","Wadsworth Atheneum - Hartford","National Gallery - Londres","Frick Collection - New York","Musée des Beaux-arts - Montréal","Nationalmuseum - Stockholm","National Gallery - Londres","Musée du Prado - Madrid","National Gallery of Art - Washington","Musée du Louvre - Paris","Musée du Louvre - Paris","Wallraf-Richartz Museum - Cologne","Metropolitan Museum - New York","National Gallery of Art - Washington","Musée d'Orsay - Paris","Natioanl Gallery - Washington","Musée d'Orsay","Smithsonian American Art - Washington","Musée d'Orsay - Paris","Famille Block-Bauer","Thielski Galleriet - Stockholm","Musée Städel - Francfort-sur-le-Main","Musée Beaux-Arts - Berne","Centre Georges Pompidou - Paris","Stiftung fur Kunst - Winterthur","Golman Collection","Musée Kröller-Müller - Otterlo (P.-B.)","MoMA - Ney York","Tate - Londres","Collection privée - Allemagne","MoMa - New York","Museum Guggenheim - New York","Gravure à 120 ex.","Collection privée",null,null,null,null,null,null,null,null,null,"Gemäldegalerie Alte Meister - Dresde",null,"Collection privée Berne"]
[null,null,null,null,null,null,null,null,null,null,null,null,null,null,null,null,null,null,null,null,null,null,null,null,null,null,null,null,null,null,null,null,null,null,null,null,null,null,null,null,null,null,null,null,null,null,null,null,null,null,"107/90",null,"46/54"]
[]
[null,null,null,null,null,null,null,null,null,null,null,null,null,null,null,null,null,null,null,null,null,null,null,null,null,null,null,null,null,null,null,null,null,null,null,null,null,null,null,null,null,null,"Bravo !"]
["B",{"$f":"B3","v":"Bondone Giotto"},"Giovanni Bellini","Jérôme Bosch","Le Titien","Pieter Brueghel","Le Greco","Le Tintoret","Le Caravage","Pierre-Paul Rubens","Georges de La Tour","Charles Le Brun","François Boucher","Thomas Gainsborough","Francisco Goya",{"$f":"P17","v":"Johann-Heinrich Füssli"},{"$f":"Q3","v":"Jean-Auguste-Dominique Ingres"},"Théodore Géricault","Caspar-David Friedrich","Camille Corot","Honoré Daumier","Jean-François Millet","Berthe Morisot","Camille Pissaro","Theodore Robinson","Paul Signac",{"$f":"AA3","v":"Gustav Klimt"},"Edvard Munch","Ernest-Ludwig Kirchner","Félix Vallotton","Vassily Kandinsky","René Auberjonois","Maurice de Vlaminck","Fernand Léger","Juan Gris","Max Ernst","Yves Tanguy","Jackson Pollock",{"$f":"AM3","v":"Jean Dubuffet"},"Jean Solombre","Vladimir Volegov",null,null,null,null,null,null,null,null,null,{"$f":"AY3","v":"Antoine van Dyck"}]
[null,1305,1485,1510,1538,1565,1600,1562,1602,1619,1642,1647,1745,1782,1778,1790,1827,1817,1821,1834,1866,1859,1881,1890,1891,1894,1908,1893,1913,1922,1923,1931,1906,1917,1911,1924,1942,1945,1963,1988,2006,null,null,null,null,null,null,null,null,null,1618]
[null,"La Déposition de la Croix","L'Extase de Saint-François","La Nef des Fous","Vénus d'Urbin","Chasseurs dans la neige","Christ chassant les Marchands du Temple","Saint-Marc sauve un Sarrasin","La Mise au Tombeau","Deux Satyres","La Madeleine à la Veilleuse","Le Sacrifice de Polyxène","Vénus désarmant Cupidon","Les Enfants Masham","Enfants gonflant une vessie","Le Cauchemar","L'Apothéose d'Homère","Course de Cheveaux","Lever de lune sur la mer","Batelier derrière les arbres","Don Quijote et Sancho Panza","L'Angelus","Après déjeuner","Hyde Park","Le Pont de Giverny","Au Temps d'Harmonie","Le Baiser","Le Cri","Trois Baigneuses","Route à Saint-Paul","Cercles encerclés","Italienne à la Fontaine","Voiles blanches à Chatou","La Partie de Cartes","Juan Ligua","Deux Enfants menacés par un Rossignol","La Traversée de la Passion","There were Seven in Eight","Mouchon Berloque","À Marée Haute","Proche de la Vase",null,null,null,null,null,null,null,null,null,"Le Couronnement d'Epines",null,"Voilier"]
[null,"Chapelle des Scovegni - Padoue","Frick Collection - New York","Musée du Louvre - Paris","Offices - Florence","Kunsthistorisches Museum - Vienne","National Galleriy - Londres","Gallerie dell'Accademia - Venise","Musée du Vatican","Alte Pinakothek - Munich","Musée du Louvre  - Paris","MoMA - Ney York","Collection privée","Gemäldegalerien - Berlin","Musée du Praqdo  - Madrid","Goethehaus - Frankfurt","Musée du Louvre  - Paris","Walters Art Museum - Baltimore","Musée de l'Ermitage - Saint-Pétersbourg","Collection privée","Alte Nationalgalerie - Berlin","Musée d'Orsay - Paris","Collection privée","Fuji Art Museum - Tokyo ","Museum of Fine Arts - Houston","Mairie de Montreuil","Osterreichische Galerie Belvédère - Vienne","National Gallery - Oslo","Galerie d'art de Nouvelle-Galles - Syndey","Tate Britain - Londres","Museum of Art - Philadelphia","Musée Athénéé- Genève","Art Gallery of New Wales - Sydney","MoMA - Ney York","MoMA - Ney York","MoMA - New York","Collection Albright-Knox - New York","MoMa - New York","Fondation Dubuffet - Paris","Gravure à 90 ex.","Collection privée",null,null,null,null,null,null,null,null,null,"Musée du Prado - Magrid",null,"Moinat Antiquités - Lausanne"]
[null,null,null,null,null,null,null,null,null,null,null,null,null,null,null,null,null,null,null,null,null,null,null,null,null,null,null,null,null,null,null,null,null,null,null,null,null,null,null,null,null,null,null,null,null,null,null,null,null,null,"225/197",null,"38/54"]
[null,null,null,null,null,null,null,null,null,null,null,"   ",null,null,null,null,null,null,null,null,null,null,null,null,null,null,null,null,null,null,null,null,null,null,null,null,null,null,null,null,null,null,null,null,null,null,null,null,null,null,"   ","   "]
[null,null,null,null,null,null,null,null,null,null,null,null,null,null,null,null,null,null,null,null,null,null,null,null,null,null,null,null,null,null,null,null,null,null,null,null,null,null,null,null,null,null,"Bravo !"]
["C",{"$f":"B3","v":"Bondone Giotto"},"Giovanni Bellini","Jérôme Bosch","Le Titien","Pieter Brueghel","Le Greco","Le Tintoret","Le Caravage","Pierre-Paul Rubens","Georges de La Tour","Charles Le Brun","François Boucher","Thomas Gainsborough","Francisco Goya","Johann-Heinrich Füssli",{"$f":"Q3","v":"Jean-Auguste-Dominique Ingres"},"Théodore Géricault","Caspar-David Friedrich","Camille Corot","Honoré Daumier","Jean-François Millet","Berthe Morisot","Camille Pissaro","Theodore Robinson",{"$f":"Z10","v":"Paul Signac"},{"$f":"AA3","v":"Gustav Klimt"},"Edvard Munch","Ernest-Ludwig Kirchner","Félix Vallotton","Vassily Kandinsky","René Auberjonois","Maurice de Vlaminck","Fernand Léger","Juan Gris","Max Ernst","Yves Tanguy","Jackson Pollock",{"$f":"AM3","v":"Jean Dubuffet"},"Jean Solombre","Vladimir Volegov"]
[null,1325,1505,1530,1554,1566,1614,1570,1604,1633,1645,1661,1751,1787,1808,1806,1839,1818,1825,1850,1868,1861,1884,1891,1891,1896,1910,1894,1914,1923,1923,1938,1933,1918,1913,1926,1943,1953,1963,1989,2014,null,null,null,null,null,null,null,null,null,{"$f":"AY3","v":"Antoine van Dyck"},null,1909]
[null,"La Stigmatisation de Saint-François","La Pieta","La Vision de Tondale","Vénus et Adonis","Le Dénombrement de Bethléem","L'Annonciation","Christ au Lac de Tibériade","La Conversion de Saint-Paul","Suzanne et les vieillards","Saint Joseph Charpentier","Le Chancelier Séguier","La Toilette de Vénus","Giovanna Baccelli","Ferdinand VII à Cheval","Mad Kat","L'Odalisque à l'Esclave","Le Radeau de la Méduse","Deux Hommes contemplant la Lune","Entrée du Bois de Ville-d'Avray","Déjeuner à la campagne","Les planteurs de pommes de terre","Rose Trémière","Fenaison à Eragny","La Roche Guyon","Le Clocher de Saint-Tropez","L'Enlacement","Anxiété","Place Potsdam","Nuit tombante sur la Loire","Sur Blanc II","Couple de vendangeurs","Chaumières sur la route","Les Hélices 2e","Guitare et Pipe","Forêt et Soleil","Mon cœur chemin de mes mots","Ocean Greyness","Banque des Équivoques","Magnifique Estuaire","Sac en Corail",null,null,null,null,null,null,null,null,null,1635,null,"Fuldrigger på havet"]
[null,"Eglise Santa Croce de Florence","National Gallery - Londres","Museo Lazaro Galdiono - Madrif","Musée du Prado - Madrid","Musées Royaux des Beaux-Arts - Belgique","Musée du Louvre - Paris","National Galleriy of Art - Washington","Eglise Santa Maria del Popolo - Rome","National Museum - Stockholm","Musée du Louvre  - Paris","Musée du Louvre - Paris","Metropolitan Museum of Art - New York","National Gallery - Londres","Musée du Prado - Madrid","Goethemuseum - Frankfurt","Walters Art Museum - Harvard","Musée du Louvre - Paris","MoMA - New York","National Gallery of Scotland - Edimbourg","National Museum of Wales - Cardiff","Fine Att Museum - Boston","Musée Marnottan - Paris","Collection privée","Brooklyn Museum - New York","Fondation Bemberg - Toulouse","MAK - Vienne","Munch Museum - Oslo","Neue Nationalgalerie - Berlin","Collection privée","Centre Georges Pompidou - Paris","Fondation de l'Hermitage - Lausanne","Centre Georges Pompidou - Paris","MoMA - Ney York","Museum of Art - Dallas","Collection privée - Bruxelles","Institute of Art - Minneapolis","Museum Guggenheim - New York","Musle Arts décoratifs - Paris","Gravure à 90 ex.","Collection privée",null,null,null,null,null,null,null,null,null,"Charles 1er à la Chasse"]
[null,"Pré-Renaissance","Renaissance","Renaissance","Maniérisme","Renaissance","Maniérisme","Maniérisme","Baroque","Baroque","Baroque","Classicisme","Rococo","Rococo","Néo-classicisme","Romantisme","Néo-classicisme","Romantisme","Romantisme","Réalisme","Réalisme","Réalisme","Impressionnisme","Impressionnisme","Impressionnisme","Pointillisme","Art nouveau","Expressionnisme","Expressionnisme","Art nouveau","Art abstrait","Postimpressionnisme","Fauvisme","Cubisme","Cubisme","Surréalisme","Surréalisme","Art abstrait","Art brut","Art moderne","Kitsch",null,null,null,null,null,null,null,null,null,"Musée du Louvre - Paris"]
[null,"   ","   ","   ","Renaissance","   ","Renaissance","Renaissance","   ","   ","Classicisme","Baroque","   ","Romantisme","Rococo","   ","   ","   ","   ","Romantisme","Impressionnisme","   ","   ","   ","   ","postimpressionnisme","Symbolisme  ","Symbolisme","Art moderne","   ","Art moderne","   ","Postimpressionnisme","   ","   ","   ","   ","Art brut","Art abstrait","Surréalisme","   ",null,null,null,null,null,null,null,null,null,"Baroque",null,"Marine"]
[null,null,null,null,null,null,null,null,null,null,null,null,null,null,null,null,null,null,null,null,null,null,null,null,null,null,null,null,null,null,null,null,"postimpressionnisme"]
[null,1,2,3,4,5,6,7,8,9,null,null,10,11,12,null,13,14,null,15,16,17,18,19,20,null,21,22,null,23,24,25,26,27,28,29,30,31,32,33,34,null,null,null,null,null,null,null,null,null,"105/76",null,"110/142"]
[null,"Liste alphabétique","Pour aller au peintre : cliquer sur le no à gauche du peintre, puis sur son nom - Retour  à la liste avec Ctrl+l"]
[31,"AUBERJONOIS  René ","La Course au Clocher","Italienne à la Fontaine","Couple de vendangeurs"]
[2,"BELLINI  Giovanni ","Le Sang du Rédempteur","L'Extase de Saint-François","La Pieta"]
[3,"BOSCH  Jérôme ","Fantasia Moral","La Nef des Fous","La Vision de Tondale"]
[12,"BOUCHER  François ","Le Triomphe de Vénus","Vénus désarmant Cupidon","La Toilette de Vénus"]
[5,"BRUEGHEL  Pieter ","La Tour de Babel","Chasseurs dans la neige","Le Dénombrement de Bethléem"]
[8,"CARAVAGE  Le ","L'Extase de Saint-François","La Mise au Tombeau","La Conversion de Saint-Paul"]
[19,"COROT  Jean-Baptiste ","Honfleur, Calvaire","Batelier derrière les arbres","Entrée du Bois de Ville-d'Avray"]
[20,"DAUMIER  Honoré ","Le Soulèvement","Don Quijote et Sancho Panza","Déjeuner à la campagne"]
[10,"DE LA TOUR  Georges ","L'Education de la Vierge","La Madeleine à la Veilleuse","Saint Joseph Charpentier"]
[32,"DE VLAMINCK  Maurice ","La Seine é Chatou","Voiles blanches à Chatou","Chaumières sur la route"]
[38,"DUBUFFET  Jean ","L'Instant propice","Mouchon Berloque","Banque des Équivoques"]
[35,"ERNST  Max ","L'Éléphant de Célèbres","Deux Enfants menacés par un Rossignol","Forêt et Soleil"]
[18,"FRIEDRICH  Caspar-David ","Barque fluviale dans le Brouillard","Lever de lune sur la mer","Deux Hommes contemplant la Lune"]
[15,"FÜSSLI  Johann-Heinrich ","Œdipe maudissant son fils, Polynices","Le Cauchemar","Mad Kat"]
[13,"GAINSBOROUGH  Thomas ","John Plampin","Les Enfants Masham","Giovanna Baccelli"]
[17,"GÉRICAULT  Théodore ","Scène de Déluge","Course de Cheveaux","Le Radeau de la Méduse"]
[1,"GIOTTO  Bondone ","Adoration des Mages","La Déposition de la Croix","La Stigmatisation de Saint-François"]
[14,"GOYA  Francisco ","Le Parasol vert","Enfants gonflant une vessie","Ferdinand VII à Cheval"]
[6,"GRECO  Le ","L'Extase de Saint-François","Christ chassant les Marchands du Temple","L'Annonciation"]
[34,"GRIS  Juan ","Maison à Paris","Juan Ligua","Guitare et Pipe"]
[16,"INGRES  Jean-Auguste-Dominique ","Roger délivrant Angélique","L'Apothéose d'Homère","L'Odalisque à l'Esclave"]
[30,"KANDINSKY  Vassily ","Une voix inconnue","Cercles encerclés","Sur Blanc II"]
[28,"KIRCHNER  Ernest-Ludwig ","Chasseur de Mouettes","Trois Baigneuses","Place Potsdam"]
[26,"KLIMT  Gustav ","Portrait d'Adèle Bloch-Bauer","Le Baiser","L'Enlacement"]
[11,"LE BRUN  Charles ","La Déification d'Enée","Le Sacrifice de Polyxène","Le Chancelier Séguier"]
[33,"LÉGER  Fernand ","La Sortie des Ballets Russes","La Partie de Cartes","Les Hélices 2e"]
[21,"MILLET  Jean-François ","Les Glaneuses","L'Angelus","Les planteurs de pommes de terre"]
[22,"MORISOT  Berthe ","Dans la salle à Manger","Après déjeuner","Rose Trémière"]
[27,"MUNCH  Edvard ","Désespoir","Le Cri","Anxiété"]
[37,"PISSARO Camille","Le Jardin potager à l'Hermitage","Hyde Park","Fenaison à Eragny"]
[23,"POLLOCK  Jackson ","The She Wolf","There were Seven in Eight","Ocean Greyness"]
[9,"ROBINSON  Theodore ","La Vachère","Le Pont de Giverny","La Roche Guyon"]
[24,"RUBENS  Pierre-Paul ","Samson et Dalilah","Deux Satyres","Suzanne et les vieillards"]
[25,"SIGNAC  Paul ","Jeunes Provençales au Puits","Au Temps d'Harmonie","Le Clocher de Saint-Tropez"]
[39,"SOLOMBRE  Jean ","L'Apprentissage de la Nuit","À Marée Haute","Magnifique Estuaire"]
[36,"TANGUY  Yves ","La Lumière, la Solitude","La Traversée de la Passion","Mon cœur chemin de mes mots"]
[7,"TINTORET  Le ","Miracle de l'Esclave","Saint-Marc sauve un Sarrasin","Christ au Lac de Tibériade"]
[4,"TITIEN  Le ","La Bachanale des Andriens","Vénus d'Urbin","Vénus et Adonis"]
[29,"VALLOTTON  Félix ","L'Enlèvement d'Europe","Route à Saint-Paul","Nuit tombante sur la Loire"]
[40,"VOLEGOV  Vladimir ","Costa Brava Dream","Proche de la Vase","Sac en Corail"]
[]
[]
[]
[]
[]
[]
[]
[]
[]
[]
[]
["Classement par date",null,null,null,"Mouvements*","Premier mouvement","Second mouvement"]
[]
[1303,"GIOTTO","Adoration des Mages",null,{"$f":"Data!B3","v":"Bondone Giotto"},{"$f":"Data!L3","v":"Pré-Renaissance"},{"$f":"Data!M3","v":"   "}]
[1305,"GIOTTO","La Déposition de la Croix",null,{"$f":"Data!B4","v":"Giovanni Bellini"},{"$f":"Data!L4","v":"Renaissance"},{"$f":"Data!M4","v":"   "}]
[1325,"GIOTTO","La Stigmatisation de Saint-François",null,{"$f":"Data!B5","v":"Jérôme Bosch"},{"$f":"Data!L5","v":"Renaissance"},{"$f":"Data!M5","v":"   "}]
[1460,"BELLINI","Le Sang du Rédempteur",null,{"$f":"Data!B6","v":"Le Titien"},{"$f":"Data!L6","v":"Maniérisme"},{"$f":"Data!M6","v":"Renaissance"}]
[1482,"BOSCH","Fantasia Moral",null,{"$f":"Data!B7","v":"Pieter Brueghel"},{"$f":"Data!L7","v":"Renaissance"},{"$f":"Data!M7","v":"   "}]
[1485,"BELLINI","L'Extase de Saint-François",null,{"$f":"Data!B8","v":"Le Greco"},{"$f":"Data!L8","v":"Maniérisme"},{"$f":"Data!M8","v":"Renaissance"}]
[1505,"BELLINI","La Pieta",null,{"$f":"Data!B9","v":"Le Tintoret"},{"$f":"Data!L9","v":"Maniérisme"},{"$f":"Data!M9","v":"Renaissance"}]
[1510,"BOSCH","La Nef des Fous",null,{"$f":"Data!B10","v":"Le Caravage"},{"$f":"Data!L10","v":"Baroque"},{"$f":"Data!M10","v":"   "}]
[1525,"TITIEN","La Bachanale des Andriens",null,{"$f":"Data!B11","v":"Pierre-Paul Rubens"},{"$f":"Data!L11","v":"Baroque"},{"$f":"Data!M11","v":"   "}]
[1530,"BOSCH","La Vision de Tondale",null,{"$f":"Data!B12","v":"Georges de La Tour"},{"$f":"Data!L12","v":"Baroque"},{"$f":"Data!M12","v":"Classicisme"}]
[1538,"TITIEN","Vénus d'Urbin",null,{"$f":"Data!B13","v":"Charles Le Brun"},{"$f":"Data!L13","v":"Classicisme"},{"$f":"Data!M13","v":"Baroque"}]
[1547,"TINTORET","Miracle de l'Esclave",null,{"$f":"Data!B14","v":"François Boucher"},{"$f":"Data!L14","v":"Rococo"},{"$f":"Data!M14","v":"   "}]
[1554,"TITIEN","Vénus et Adonis",null,{"$f":"Data!B15","v":"Thomas Gainsborough"},{"$f":"Data!L15","v":"Rococo"},{"$f":"Data!M15","v":"Romantisme"}]
[1562,"TINTORET","Saint-Marc sauve un Sarrasin",null,{"$f":"Data!B16","v":"Francisco Goya"},{"$f":"Data!L16","v":"Néo-classicisme"},{"$f":"Data!M16","v":"Rococo"}]
[1563,"BRUEGHEL","La Tour de Babel",null,{"$f":"Data!B17","v":"Johann-Heinrich Füssli"},{"$f":"Data!L17","v":"Romantisme"},{"$f":"Data!M17","v":"   "}]
[1565,"BRUEGHEL","Chasseurs dans la neige",null,{"$f":"Data!B18","v":"Jean-Auguste-Dominique Ingres"},{"$f":"Data!L18","v":"Néo-classicisme"},{"$f":"Data!M18","v":"   "}]
[1566,"BRUEGHEL","Le Dénombrement de Bethléem",null,{"$f":"Data!B19","v":"Théodore Géricault"},{"$f":"Data!L19","v":"Romantisme"},{"$f":"Data!M19","v":"   "}]
[1570,"TINTORET","Christ au Lac de Tibériade",null,{"$f":"Data!B20","v":"Caspar-David Friedrich"},{"$f":"Data!L20","v":"Romantisme"},{"$f":"Data!M20","v":"   "}]
[1580,"GRECO","L'Extase de Saint-François",null,{"$f":"Data!B21","v":"Camille Corot"},{"$f":"Data!L21","v":"Réalisme"},{"$f":"Data!M21","v":"Romantisme"}]
[1597,"CARAVAGE","L'Extase de Saint-François",null,{"$f":"Data!B22","v":"Honoré Daumier"},{"$f":"Data!L22","v":"Réalisme"},{"$f":"Data!M22","v":"Impressionnisme"}]
[1600,"GRECO","Christ chassant les Marchands du Temple",null,{"$f":"Data!B23","v":"Jean-François Millet"},{"$f":"Data!L23","v":"Réalisme"},{"$f":"Data!M23","v":"   "}]
[1602,"CARAVAGE","La Mise au Tombeau",null,{"$f":"Data!B24","v":"Berthe Morisot"},{"$f":"Data!L24","v":"Impressionnisme"},{"$f":"Data!M24","v":"   "}]
[1604,"CARAVAGE","La Conversion de Saint-Paul",null,{"$f":"Data!B25","v":"Camille Pissaro"},{"$f":"Data!L25","v":"Impressionnisme"},{"$f":"Data!M25","v":"   "}]
[1609,"RUBENS","Samson et Dalilah",null,{"$f":"Data!B26","v":"Theodore Robinson"},{"$f":"Data!L26","v":"Impressionnisme"},{"$f":"Data!M26","v":"   "}]
[1614,"GRECO","L'Annonciation",null,{"$f":"Data!B27","v":"Paul Signac"},{"$f":"Data!L27","v":"Pointillisme"},{"$f":"Data!M27","v":"postimpressionnisme"}]
[1619,"RUBENS","Deux Satyres",null,{"$f":"Data!B28","v":"Gustav Klimt"},{"$f":"Data!L28","v":"Art nouveau"},{"$f":"Data!M28","v":"Symbolisme  "}]
[1633,"RUBENS","Suzanne et les vieillards",null,{"$f":"Data!B29","v":"Edvard Munch"},{"$f":"Data!L29","v":"Expressionnisme"},{"$f":"Data!M29","v":"Symbolisme"}]
[1640,"DE LA TOUR","L'Education de la Vierge",null,{"$f":"Data!B30","v":"Ernest-Ludwig Kirchner"},{"$f":"Data!L30","v":"Expressionnisme"},{"$f":"Data!M30","v":"Art moderne"}]
[1642,"DE LA TOUR","La Madeleine à la Veilleuse",null,{"$f":"Data!B31","v":"Félix Vallotton"},{"$f":"Data!L31","v":"Art nouveau"},{"$f":"Data!M31","v":"   "}]
[1644,"LE BRUN","La Déification d'Enée",null,{"$f":"Data!B32","v":"Vassily Kandinsky"},{"$f":"Data!L32","v":"Art abstrait"},{"$f":"Data!M32","v":"Art moderne"}]
[1645,"DE LA TOUR","Saint Joseph Charpentier",null,{"$f":"Data!B33","v":"René Auberjonois"},{"$f":"Data!L33","v":"Postimpressionnisme"},{"$f":"Data!M33","v":"   "}]
[1647,"LE BRUN","Le Sacrifice de Polyxène",null,{"$f":"Data!B34","v":"Maurice de Vlaminck"},{"$f":"Data!L34","v":"Fauvisme"},{"$f":"Data!M34","v":"Postimpressionnisme"}]
[1661,"LE BRUN","Le Chancelier Séguier",null,{"$f":"Data!B35","v":"Fernand Léger"},{"$f":"Data!L35","v":"Cubisme"},{"$f":"Data!M35","v":"   "}]
[1740,"BOUCHER","Le Triomphe de Vénus",null,{"$f":"Data!B36","v":"Juan Gris"},{"$f":"Data!L36","v":"Cubisme"},{"$f":"Data!M36","v":"   "}]
[1745,"BOUCHER","Vénus désarmant Cupidon",null,{"$f":"Data!B37","v":"Max Ernst"},{"$f":"Data!L37","v":"Surréalisme"},{"$f":"Data!M37","v":"   "}]
[1751,"BOUCHER","La Toilette de Vénus",null,{"$f":"Data!B38","v":"Yves Tanguy"},{"$f":"Data!L38","v":"Surréalisme"},{"$f":"Data!M38","v":"   "}]
[1753,"GAINSBOROUGH","John Plampin",null,{"$f":"Data!B39","v":"Jackson Pollock"},{"$f":"Data!L39","v":"Art abstrait"},{"$f":"Data!M39","v":"Art brut"}]
[1777,"GOYA","Le Parasol vert",null,{"$f":"Data!B40","v":"Jean Dubuffet"},{"$f":"Data!L40","v":"Art brut"},{"$f":"Data!M40","v":"Art abstrait"}]
[1778,"GOYA","Enfants gonflant une vessie",null,{"$f":"Data!B41","v":"Jean Solombre"},{"$f":"Data!L41","v":"Art moderne"},{"$f":"Data!M41","v":"Surréalisme"}]
[1782,"GAINSBOROUGH","Les Enfants Masham",null,{"$f":"Data!B42","v":"Vladimir Volegov"},{"$f":"Data!L42","v":"Kitsch"},{"$f":"Data!M42","v":"   "}]
[1786,"FÜSSLI","Œdipe maudissant son fils, Polynices"]
[1787,"GAINSBOROUGH","Giovanna Baccelli",null,"*admis comme réponse dans le QUIZ"]
[1790,"FÜSSLI","Le Cauchemar"]
[1806,"FÜSSLI","Mad Kat"]
[1808,"GOYA","Ferdinand VII à Cheval"]
[1817,"GÉRICAULT","Scène de Déluge"]
[1817,"GÉRICAULT","Course de Cheveaux"]
[1818,"GÉRICAULT","Le Radeau de la Méduse"]
[1819,"INGRES","Roger délivrant Angélique"]
[1820,"FRIEDRICH","Barque fluviale dans le Brouillard"]
[1821,"FRIEDRICH","Lever de lune sur la mer"]
[1825,"FRIEDRICH","Deux Hommes contemplant la Lune"]
[1827,"INGRES","L'Apothéose d'Homère"]
[1830,"COROT","Honfleur, Calvaire"]
[1834,"COROT","Batelier derrière les arbres"]
[1839,"INGRES","L'Odalisque à l'Esclave"]
[1850,"COROT","Entrée du Bois de Ville-d'Avray"]
[1857,"MILLET","Les Glaneuses"]
[1859,"MILLET","L'Angelus"]
[1860,"DAUMIER","Le Soulèvement"]
[1861,"MILLET","Les planteurs de pommes de terre"]
[1866,"DAUMIER","Don Quijote et Sancho Panza"]
[1868,"DAUMIER","Déjeuner à la campagne"]
[1875,"MORISOT","Dans la salle à Manger"]
[1878,"Pissaro","Le Jardin potager à l'Hermitage"]
[1881,"MORISOT","Après déjeuner"]
[1884,"MORISOT","Rose Trémière"]
[1888,"ROBINSON","La Vachère"]
[1890,"Pissaro","Hyde Park"]
[1891,"Pissaro","Fenaison à Eragny"]
[1891,"ROBINSON","Le Pont de Giverny"]
[1891,"ROBINSON","La Roche Guyon"]
[1892,"SIGNAC","Jeunes Provençales au Puits"]
[1892,"MUNCH","Désespoir"]
[1893,"MUNCH","Le Cri"]
[1894,"SIGNAC","Au Temps d'Harmonie"]
[1894,"MUNCH","Anxiété"]
[1896,"SIGNAC","Le Clocher de Saint-Tropez"]
[1906,"DE VLAMINCK","La Seine é Chatou"]
[1906,"DE VLAMINCK","Voiles blanches à Chatou"]
[1907,"KLIMT","Portrait d'Adèle Bloch-Bauer"]
[1908,"VALLOTTON","L'Enlèvement d'Europe"]
[1908,"KLIMT","Le Baiser"]
[1910,"KLIMT","L'Enlacement"]
[1911,"GRIS","Maison à Paris"]
[1911,"GRIS","Juan Ligua"]
[1912,"KIRCHNER","Chasseur de Mouettes"]
[1913,"AUBERJONOIS","La Course au Clocher"]
[1913,"KIRCHNER","Trois Baigneuses"]
[1913,"GRIS","Guitare et Pipe"]
[1914,"LÉGER","La Sortie des Ballets Russes"]
[1914,"KIRCHNER","Place Potsdam"]
[1916,"KANDINSKY","Une voix inconnue"]
[1917,"LÉGER","La Partie de Cartes"]
[1918,"LÉGER","Les Hélices 2e"]
[1921,"ERNST","L'Éléphant de Célèbres"]
[1922,"VALLOTTON","Route à Saint-Paul"]
[1923,"KANDINSKY","Cercles encerclés"]
[1923,"VALLOTTON","Nuit tombante sur la Loire"]
[1923,"KANDINSKY","Sur Blanc II"]
[1924,"ERNST","Deux Enfants menacés par un Rossignol"]
[1926,"ERNST","Forêt et Soleil"]
[1931,"AUBERJONOIS","Italienne à la Fontaine"]
[1933,"DE VLAMINCK","Chaumières sur la route"]
[1938,"AUBERJONOIS","Couple de vendangeurs"]
[1940,"TANGUY","La Lumière, la Solitude"]
[1942,"TANGUY","La Traversée de la Passion"]
[1943,"POLLOCK","The She Wolf"]
[1943,"TANGUY","Mon cœur chemin de mes mots"]
[1945,"POLLOCK","There were Seven in Eight"]
[1953,"POLLOCK","Ocean Greyness"]
[1962,"DUBUFFET","L'Instant propice"]
[1963,"DUBUFFET","Mouchon Berloque"]
[1963,"DUBUFFET","Banque des Équivoques"]
[1987,"SOLOMBRE","L'Apprentissage de la Nuit"]
[1988,"SOLOMBRE","À Marée Haute"]
[1989,"SOLOMBRE","Magnifique Estuaire"]
[2006,"VOLEGOV","Proche de la Vase"]
[2014,"VOLEGOV","Sac en Corail"]
[2015,"VOLEGOV","Costa Brava Dream"]

{"sheet":"Diapo","index":2,"n_rows":42,"n_cols":6,"rows_kept":42,"cut":false,"hidden":false,"merged":[]}
[130,{"$f":" IF(E4=44,\"\",\"<----            \"&VLOOKUP(E4,chrono,E9)&\" cm            ---->\")","v":""}]
[{"$f":"VLOOKUP(E4,chrono,2)","v":"   "},null,{"$f":"VLOOKUP(E4,chrono,E8+1)&\"             \"&VLOOKUP(E4,chrono,E8)","v":"                   "}]
[null,{"$f":"IF(E4=0,\"\",VLOOKUP(E4,chrono,E8+2))","v":"   "},null,null,null,1]
[null,{"$f":"IF(E11=TRUE,D12,\"\")","v":""},null,"menu :",44,2]
[null,null,null,null,null,3]
[null,null,null,"Série : ",1,4]
[null,null,null,"décal V",{"$f":"IF(E6=1,0,IF(E6=2,7,14))","v":0},5]
[null,null,null,"decalo",{"$f":"IF(E6=1,3,IF(E6=2,6,9))","v":3},6]
[null,null,null,"decalarg",{"$f":"IF(E6=1,17,IF(E6=2,19,21))","v":17},7]
[null,null,null,null,true,8]
[null,null,null,null,false,9]
[null,null,null,{"$f":"IF(VLOOKUP(E4,chrono,13)=\"   \",VLOOKUP(E4,chrono,12),VLOOKUP(E4,chrono,12)&\"    -    \"&VLOOKUP(E4,chrono,13))","v":"   "},null,10]
[null,null,null,null,null,11]
[null,null,null,null,null,12]
[null,null,null,null,null,13]
[null,null,null,null,null,14]
[null,null,null,null,null,15]
[null,null,null,null,null,16]
[null,null,null,null,null,17]
[null,null,null,null,null,18]
[null,null,null,null,null,19]
[null,null,null,null,null,20]
[null,null,null,null,null,21]
[null,null,null,null,null,22]
[null,null,null,null,null,23]
[null,null,null,null,null,24]
[null,null,null,null,null,25]
[null,null,null,null,null,26]
[null,null,null,null,null,27]
[null,null,null,null,null,28]
[null,null,null,null,null,29]
[null,null,null,null,null,30]
[null,null,null,null,null,31]
[null,null,null,null,null,32]
[null,null,null,null,null,33]
[null,null,null,null,null,34]
[null,null,null,null,null,35]
[null,null,null,null,null,36]
[null,null,null,null,null,37]
[null,null,null,null,null,38]
[null,null,null,null,null,39]
[null,null,null,null,null,40]

{"sheet":"Mouvements","index":3,"n_rows":68,"n_cols":33,"rows_kept":68,"cut":false,"hidden":false,"merged":[[0,0,0,2],[26,5,30,5],[47,1,47,4],[48,1,48,4],[49,1,49,4],[61,1,61,4],[50,1,50,4],[51,1,51,4],[53,1,53,4],[54,1,54,4],[55,1,55,4],[52,1,52,4],[67,1,67,4],[0,13,2,13],[0,14,2,14],[0,15,2,15],[0,16,2,16],[0,10,2,10],[0,11,2,11],[0,12,2,12],[56,1,56,4],[57,1,57,4],[58,1,58,4],[64,1,64,4],[65,1,65,4],[63,1,63,4],[59,1,59,4],[60,1,60,4],[0,29,2,29],[0,9,2,9],[0,24,2,24],[0,26,2,26],[66,1,66,4],[0,17,2,17],[0,18,2,18],[0,19,2,19],[0,20,2,20],[0,21,2,21],[0,28,2,28],[0,22,2,22],[0,23,2,23],[0,25,2,25],[0,27,2,27],[62,1,62,4]]}
["   Mouvements en peinture",null,null,null,null,null,null,null,null,"Pré-Renaissance","Renaissance","Maniérisme","Baroque","Rococo","Néo-classisime","Classicisme","Romantisme","Réalisme","Impressionnisme","Postimpressionnisme","Cubisme","Fauvisme","Expressionnisme","Pointillisme","Surréalisme","Symbolisme","Art nouveau","Art brut","Art abstrait","Art moderne"]
[]
[]
[null,null,null,null,null,null,null,null,{"$f":"Data!Z3","v":"GIOTTO  Bondone "},1,3,null,null,null,null,null,null,null,null,null,null,null,null,null,null,null,null,null,null,null,"Pré-Renaissance","   ","GIOTTO  Bondone "]
[null,null,null,null,null,null,null,null,{"$f":"Data!Z4","v":"BELLINI  Giovanni "},null,5,null,null,null,null,null,null,null,null,null,null,null,null,null,null,null,null,null,null,null,"Renaissance","   ","BELLINI  Giovanni "]
[null,null,null,null,null,null,null,null,{"$f":"Data!Z5","v":"BOSCH  Jérôme "},null,2,null,null,null,null,null,null,null,null,null,null,null,null,null,null,null,null,null,null,null,"Renaissance","   ","BOSCH  Jérôme "]
[1400,"Fin de la guerre de 100 ans","Gothique",null,null,null,null,null,{"$f":"Data!Z6","v":"TITIEN  Le "},null,1,3,null,null,null,null,null,null,null,null,null,null,null,null,null,null,null,null,null,null,"Maniérisme","Renaissance","TITIEN  Le "]
[1425,null,null,"Renaissance",null,null,null,null,{"$f":"Data!Z7","v":"BRUEGHEL  Pieter "},null,7,null,null,null,null,null,null,null,null,null,null,null,null,null,null,null,null,null,null,null,"Renaissance","   ","BRUEGHEL  Pieter "]
[1450,null,null,null,null,null,null,null,{"$f":"Data!Z8","v":"GRECO  Le "},null,8,1,null,null,null,null,null,null,null,null,null,null,null,null,null,null,null,null,null,null,"Maniérisme","Renaissance","GRECO  Le "]
[1475,"1492 Découverte de l'Amérique",null,null,null,null,null,null,{"$f":"Data!Z9","v":"TINTORET  Le "},null,4,2,null,null,null,null,null,null,null,null,null,null,null,null,null,null,null,null,null,null,"Renaissance","Maniérisme","TINTORET  Dominique "]
[1500,null,null,null,null,null,null,null,{"$f":"Data!Z10","v":"CARAVAGE  Le "},null,6,null,2,null,null,null,null,null,null,null,null,null,null,null,null,null,null,null,null,null,"Baroque","   ","CARAVAGE  Le "]
[1525,"1515-1547 François 1er","Maniérisme",null,null,null,null,null,{"$f":"Data!Z11","v":"RUBENS  Pierre-Paul "},null,null,null,1,null,null,null,null,null,null,null,null,null,null,null,null,null,null,null,null,null,"Baroque","   ","RUBENS  Pierre-Paul "]
[1550,null,null,null,null,null,null,null,{"$f":"Data!Z12","v":"DE LA TOUR  Georges "},null,null,null,3,null,null,null,null,null,null,null,null,null,null,null,null,null,null,null,null,null,"Baroque","   ","DE_LA_TOUR  Georges "]
[1575,null,null,null,null,null,null,null,{"$f":"Data!Z13","v":"LE BRUN  Charles "},null,null,null,3,null,null,null,null,null,null,null,null,null,null,null,null,null,null,null,null,null,"Rococo","   ","BOUCHER  François "]
[1600,"1589-1610 Henri IV","Baroque",null,null,null,null,null,{"$f":"Data!Z14","v":"BOUCHER  François "},null,null,null,null,1,null,null,null,null,null,null,null,null,null,null,null,null,null,null,null,null,"Rococo","Romantisme","GAINSBOROUGH  Thomas "]
[1625,null,null,null,null,null,null,null,{"$f":"Data!Z15","v":"GAINSBOROUGH  Thomas "},null,null,null,null,2,null,null,5,null,null,null,null,null,null,null,null,null,null,null,null,null,"Romantisme","Rococo","GOYA  Francisco "]
[1650,null,null,null,null,null,null,null,{"$f":"Data!Z16","v":"GOYA  Francisco "},null,null,null,null,3,2,null,6,null,null,null,null,null,null,null,null,null,null,null,null,null,"Néo-classicisme","   ","INGRES  Dominique "]
[1675,"1643 - 1715 Louis XIV",null,null,null,null,null,null,{"$f":"Data!Z17","v":"FÜSSLI  Johann-Heinrich "},null,null,null,null,null,null,null,1,null,null,null,null,null,null,null,null,null,null,null,null,null,"Romantisme","   ","GÉRICAULT  Théodore "]
[1700,null,null,"Classicisme",null,null,null,null,{"$f":"Data!Z18","v":"INGRES  Jean-Auguste-Dominique "},null,null,null,null,null,1,null,null,null,null,null,null,null,null,null,null,null,null,null,null,null,"Romantisme","   ","FRIEDRICH  Caspar-David "]
[1725,null,null,null,"Rococo",null,null,null,{"$f":"Data!Z19","v":"GÉRICAULT  Théodore "},null,null,null,null,null,null,null,1,null,null,null,null,null,null,null,null,null,null,null,null,null,"Réalisme","Romantisme","COROT  Jean-Baptiste "]
[1750,null,"Préromantisme",null,null,null,null,null,{"$f":"Data!Z20","v":"FRIEDRICH  Caspar-David "},null,null,null,null,null,null,null,3,null,null,null,null,null,null,null,null,null,null,null,null,null,"Réalisme","Impressionnisme","DAUMIER  Honoré "]
[1775,null,"Romantisme","Néo-classicisme",null,null,null,null,{"$f":"Data!Z21","v":"COROT  Camille "},null,null,null,null,null,null,null,2,3,null,null,null,null,null,null,null,null,null,null,null,null,"Réalisme","   ","MILLET  Jean-François "]
[1800,null,null,null,null,null,null,null,{"$f":"Data!Z22","v":"DAUMIER  Honoré "},null,null,null,null,null,null,null,null,2,4,null,null,null,null,null,null,null,null,null,null,null,"Impressionnisme","   ","MORISOT  Berthe "]
[1825,"1839 Invention de la photo",null,null,null,null,null,null,{"$f":"Data!Z23","v":"MILLET  Jean-François "},null,null,null,null,null,null,null,null,1,null,null,null,null,null,null,null,null,null,null,null,null,"Impressionnisme","   ","ROBINSON  Theodore "]
[1850,null,null,"Réalisme",null,null,null,null,{"$f":"Data!Z24","v":"MORISOT  Berthe "},null,null,null,null,null,null,null,null,null,3,null,null,null,null,null,null,null,null,null,null,null,"Pointillisme","postimpressionnisme","SEURAT  Georges "]
[1875,"1894 Eclairage électrique",null,"Impressionnisme",null,null,null,null,{"$f":"Data!Z25","v":"PISSARO  Camille "},null,null,null,null,null,null,null,null,null,1,null,null,null,null,null,null,null,null,null,null,null,"Art nouveau","Symbolisme  ","KLIMT  Gustav "]
[1900,null,"Symbolisme",null,"Art nouveau","Modernisme","Expressionnisme",null,{"$f":"Data!Z26","v":"ROBINSON  Theodore "},null,null,null,null,null,null,null,null,null,2,null,null,null,null,null,null,null,null,null,null,null,"Expressionnisme","Symbolisme","MUNCH  Edvard "]
[1925,null,"Surréalisme","Postimpressionnisme","Art déco.",null,"Cubisme ",null,{"$f":"Data!Z27","v":"SIGNAC  Paul "},null,null,null,null,null,null,null,null,null,null,3,null,null,null,1,null,null,null,null,null,null,"Expressionnisme","Art moderne","KIRCHNER  Ernest-Ludwig "]
[1950,"1960 Début informatique",null,null,"Art brut",null,"Fauvisme",null,{"$f":"Data!Z28","v":"KLIMT  Gustav "},null,null,null,null,null,null,null,null,null,null,null,null,null,null,null,3,1,1,null,null,null,"Art nouveau","   ","VALLOTTON  Félix "]
[1975,null,null,null,"Art moderne",null,"Hyperréalisme",null,{"$f":"Data!Z29","v":"MUNCH  Edvard "},null,null,null,null,null,null,null,null,null,null,null,3,null,1,null,null,2,null,null,null,null,"Art abstrait","Art moderne","KANDINSKY  Vassily "]
[2000,null,null,null,"Art abstrait",null,"Pop Art",null,{"$f":"Data!Z30","v":"KIRCHNER  Ernest-Ludwig "},null,null,null,null,null,null,null,null,null,null,null,null,null,3,null,null,null,null,null,null,3,"Postimpressionnisme","   ","AUBERJONOIS  René "]
[null,null,null,null,null,null,null,null,{"$f":"Data!Z31","v":"VALLOTTON  Félix "},null,null,null,null,null,null,null,null,null,null,null,null,null,null,null,null,null,2,null,null,null,"Fauvisme","postimpressionnisme","DE VLAMINCK  Maurice "]
[null,null,null,null,null,null,null,null,{"$f":"Data!Z32","v":"KANDINSKY  Vassily "},null,null,null,null,null,null,null,null,null,null,null,null,null,2,2,null,null,null,null,1,2,"Cubisme","   ","LÉGER  Fernand "]
[null,null,null,null,null,null,null,null,{"$f":"Data!Z33","v":"AUBERJONOIS  René "},null,null,null,null,null,null,null,null,null,null,2,null,null,null,null,null,null,null,null,null,null,"Cubisme","   ","GRIS  Juan "]
[null,null,null,null,null,null,null,null,{"$f":"Data!Z34","v":"DE VLAMINCK  Maurice "},null,null,null,null,null,null,null,null,null,null,4,null,1,null,null,null,null,null,null,null,null,"Surréalisme","   ","ERNST  Max "]
[null,null,null,null,null,null,null,null,{"$f":"Data!Z35","v":"LÉGER  Fernand "},null,null,null,null,null,null,null,null,null,null,null,2,null,null,null,null,null,null,null,null,null,"Surréalisme","   ","TANGUY  Yves "]
[null,null,null,null,null,null,null,null,{"$f":"Data!Z36","v":"GRIS  Juan "},null,null,null,null,null,null,null,null,null,null,null,1,null,null,null,null,null,null,null,null,null,"Art brut","   ","DUBUFFET  Jean "]
[null,null,null,null,null,null,null,null,{"$f":"Data!Z37","v":"ERNST  Max "},null,null,null,null,null,null,null,null,null,null,null,null,null,null,null,1,null,null,null,null,null,"Art moderne","Surréalisme","SOLOMBRE  Jean "]
[null,null,null,null,null,null,null,null,{"$f":"Data!Z38","v":"TANGUY  Yves "},null,null,null,null,null,null,null,null,null,null,null,null,null,null,null,2]
[null,null,null,null,null,null,null,null,{"$f":"Data!Z39","v":"POLLOCK  Jackson "},null,null,null,null,null,null,null,null,null,null,null,null,null,null,null,null,null,null,2,1]
[null,null,null,null,null,null,null,null,{"$f":"Data!Z40","v":"DUBUFFET  Jean "},null,null,null,null,null,null,null,null,null,null,null,null,null,null,null,null,null,null,1,2]
[null,null,null,null,null,null,null,null,{"$f":"Data!Z41","v":"SOLOMBRE  Jean "},null,null,null,null,null,null,null,null,null,null,null,null,null,null,null,4,null,null,null,null,1]
[null,null,null,null,null,null,null,null,{"$f":"Data!Z42","v":"VOLEGOV  Vladimir "}]
[]
[null,null,null,null,null,null,null,null,"Ordre d'importance dans le mouvement :"]
["Dictionnaire des mouvements",null,null,null,null,null,null,null,"En rouge, mouvement principal, en vert deuxième mouvement"]
["http://www.histoiredelart.net/",null,null,null,null,null,null,null,"Fond blanc = admis comme réponse dans ce Quiz"]
[null,"La peinture de la Renaissance (mouvement de peinture qui s'est développé au XVIe siècle) se caractérise par toute une série de nouveautés telles que l'apparition du nu, de la notion de paysage, la perspective les effets de lumières et d'ombres notamment."]
[null,"Le maniérisme (mouvement de peinture qui s'est développé vers 1510) se trouve dans les poses à équilibre précaire, les formes allongées, un éclairage théâtral, les arrangements exagérés et les perspectives dissonantes."]
[null,"Le baroque (mouvement de peinture qui évolue entre 1600 et 1720) est l'art de la mise en scène par l’éblouissement des sens. Sur les peintures baroques, on observe l’exubérance des courbes, les jeux de regards, et les draperies, qui expriment la grandeur du pouvoir royal. "]
[null,"Le classicisme caractérise l'école de peinture française du XVIIe siècle. En réponse aux extravagances du baroque, le mouvement s'inspire des maîtres de la renaissance classique et devient un langage pictural au service de la monarchie absolue."]
[null,"Le rococo (courant de peinture qui se développe entre 1730 et 1789) met tous ses moyens au service de la joie, de la grâce et de la fantaisie, en opposition à l'art baroque.  Il disparut en 1789 au profit du néo-classicisme."]
[null,"Le néo-classicisme émerge vers 1750 dans l'Europe des Lumières et réagit aux extravagances du rococo par un retour au modèle antique et au beau idéal. Fantaisies et imagination sont abolies au profit de la sévérité, de la vertu et du patriotisme."]
[null,"Le romantisme (mouvement de peinture qui apparut à la fin du XVIIIe siècle) laisse une grande part à l’imaginaire, aux rêves, à la sensibilité et l’originalité des artistes."]
[null,"Le réalisme en peinture (courant de peinture du XIXe siècle) privilégie la représentation exacte, tels qu'ils sont, de la nature, des hommes et de la société."]
[null,"L'impressionnisme (courant de peinture du milieu du XIXe siècle) est né sous l'impulsion de jeunes artistes qui font du paysage leur thème principal et s’attachent à rendre compte de la moindre variation lumineuse grâce à la couleur."]
[null,"Les peintres du symbolisme (mouvement de peinture né en 1866) s’adressent à l’imaginaire, non au regard. Le sujet de prédilection est la femme qui incarne l’idéal de beauté dans tous les domaines."]
[null,"Le postimpressionnisme (mouvement entre 1885 et 1905) regroupe des courants artistiques qui, à partir de 1885, divergent de l'impressionnisme ou s'opposent à lui : néo-impressionnisme, synthétisme, symbolisme, nabis... Le post impressionnisme désigne donc une époque brève dans l'histoire de l'art, une vingtaine d'années, qui va voir un foisonnement d'idées et l'émergence de jeunes talents appelés à révolutionner la peinture. Cette période brouillonne, mais fertile finira par déboucher sur l'art abstrait."]
[null,"L'art nouveau (fin XIXe et début XXe siècle)  s'appuie sur l'esthétique des lignes courbes et se caractérise par l’emploi de lignes sinueuses, de courbes et de formes organiques."]
[null,"Le cubisme (mouvement de peinture qui s'est développé dans la première moitié du XXe siècle) est le fruit des peintres Pablo Picasso et Georges Braque qui ont introduit la fragmentation dans leurs oeuvres d'art."]
[null,"Le fauvisme (courant de peinture du début du XXe siècle) s’attache particulièrement au travail de la couleur. Les œuvres sont facilement reconnaissables par l’emploi sur de larges surfaces de couleurs aux teintes éclatantes."]
[null,"L’expressionnisme (mouvement de peinture qui apparut au début du XXe siècle) est la projection d’une vision personnelle qui tend à déformer la réalité pour inspirer au spectateur une réaction émotionnelle."]
[null,"Les caractéristiques du surréalisme (mouvement de la première moitié du XXe siècle) sont  principalement la surprise et la juxtaposition inattendue qui s'explique par une expression philosophique."]
[null,"Le constructivisme est une tendance artistique apparue en Russie vers 1913. Il se concentre sur la composition géométrique rigoureuse et par conséquent non figuratif. Le caractère constructiviste repose sur le fait de créer une composition au moyen d’éléments géométriques simples."]
[null,"Le pointillisme est un mouvement artistique de la peinture et une technique picturale qui utilise de petites touches de couleur rondes ou carrées juxtaposées plutôt que des mélanges de pâtes colorées. La peinture par points était connue depuis le xvie siècle au moins."]
[null,"La notion de modernisme (courant de peinture qui s'étend de 1907 aux années 1960) recouvre un ensemble de mouvements culturels ayant animé les sociétés occidentales de la fin du XIXe siècle et du XXe siècle, dans la peinture et dans d'autres domaines artistiques."]
[null,"Le dadaïsme ou Dada est un mouvement de peinture (qui s'est développé dans les années 1910 - 1920) qui tente d’abolir le concept du beau en mettant en avant un monde vide de sens. Tout peut devenir art si l’artiste le décide, utilisant la révolte ou la dérision. "]
[null,"Art brut est le terme par lequel le peintre Jean Dubuffet désigne les productions de personnes exemptes de culture artistique. Art qui comprend à la fois l'art des fous et celui de marginaux de toutes sortes : prisonniers, reclus, mystiques, anarchistes ou révoltés."]

{"sheet":"Data","index":4,"n_rows":98,"n_cols":38,"rows_kept":98,"cut":false,"hidden":true,"merged":[[46,13,46,21],[45,23,45,25],[46,22,46,25]]}
[1,"chrono - Matrice de Musée",null,4,5,6,7,8,9,10,11,12,13,14,15,16,17,18,19,20,21,22,23,24,25,26,27,28,29,30,31,32,33,34,35,36,37,38]
[0,"   ","   ","   ","   ","   ","   ","   ","   ","   ","   ","    ","   ","Mouvement",null,1,1,1,1,1,1]
[1,{"$f":"TRANSPOSE(Musée!B3:AO6)","v":"Bondone Giotto"},1303,"Adoration des Mages","Chapelle des Scovegni - Padoue",{"$f":"TRANSPOSE(Musée!B11:AO13)","v":1305},"La Déposition de la Croix","Chapelle des Scovegni - Padoue",{"$f":"TRANSPOSE(Musée!B18:AO22)","v":1325},"La Stigmatisation de Saint-François","Eglise Santa Croce de Florence","Pré-Renaissance","   ",{"$f":"VLOOKUP(L3,$J$49:$K$71,2)","v":16},{"$f":"IF(M3=\"   \",23,VLOOKUP(M3,$J$49:$K$71,2))","v":23},200,185,200,185,390,370,"G, H, I",{"$f":"B3","v":"Bondone Giotto"},{"$f":"UPPER(RIGHT(W3,LEN(W3)-SEARCH(\" \",W3,1)))","v":"GIOTTO"},{"$f":"LEFT(W3,FIND(\" \",W3))","v":"Bondone "},{"$f":"X3&\"  \"&Y3","v":"GIOTTO  Bondone "},{"$f":"VLOOKUP(N3,$I$49:$L$70,4)","v":"M, N, P"}]
[2,"Giovanni Bellini",1460,"Le Sang du Rédempteur","National Gallery - Londres",1485,"L'Extase de Saint-François","Frick Collection - New York",1505,"La Pieta","National Gallery - Londres","Renaissance","   ",19,23,47,37,125,141,65,90,"A, B, C",{"$f":"B4","v":"Giovanni Bellini"},{"$f":"UPPER(RIGHT(W4,LEN(W4)-SEARCH(\" \",W4,1)))","v":"BELLINI"},{"$f":"LEFT(W4,FIND(\" \",W4))","v":"Giovanni "},{"$f":"X4&\"  \"&Y4","v":"BELLINI  Giovanni "},{"$f":"VLOOKUP(N4,$I$49:$L$70,4)","v":"R, S, T"}]
[3,"Jérôme Bosch",1482,"Fantasia Moral","Musée du Prado - Madrid",1510,"La Nef des Fous","Musée du Louvre - Paris",1530,"La Vision de Tondale","Museo Lazaro Galdiono - Madrif","Renaissance","   ",19,23,29,24,58,32,37,47,"A, B, C","Jérôme Bosch","BOSCH","Jérôme ","BOSCH  Jérôme ","R, S, T"]
[4,"Le Titien",1525,"La Bachanale des Andriens","Musée du Prado - Madrid",1538,"Vénus d'Urbin","Offices - Florence",1554,"Vénus et Adonis","Musée du Prado - Madrid","Maniérisme","Renaissance",12,19,175,193,119,165,107,134,"S, T, V","Le Titien","TITIEN","Le ","TITIEN  Le ","M, N, P"]
[5,"Pieter Brueghel",1563,"La Tour de Babel","Musée Boijmans Van Beuningen - Rotterdam",1565,"Chasseurs dans la neige","Kunsthistorisches Museum - Vienne",1566,"Le Dénombrement de Bethléem","Musées Royaux des Beaux-Arts - Belgique","Renaissance","   ",19,23,114,155,117,162,116,165,"A, B, C","Pieter Brueghel","BRUEGHEL","Pieter ","BRUEGHEL  Pieter ","R, S, T"]
[6,"Le Greco",1580,"L'Extase de Saint-François","Muzeum Naradowe - Krakovie",1600,"Christ chassant les Marchands du Temple","National Galleriy - Londres",1614,"L'Annonciation","Musée du Louvre - Paris","Maniérisme","Renaissance",12,19,102,75,106,130,294,204,"G, H, I","Le Greco","GRECO","Le ","GRECO  Le ","M, N, P"]
[7,"Le Tintoret",1547,"Miracle de l'Esclave","Gallerie dell'Accademia - Venise",1562,"Saint-Marc sauve un Sarrasin","Gallerie dell'Accademia - Venise",1570,"Christ au Lac de Tibériade","National Galleriy of Art - Washington","Maniérisme","Renaissance",12,19,415,541,398,337,117,170,"S, T, V","Le Tintoret","TINTORET","Le ","TINTORET  Le ","M, N, P"]
[8,"Le Caravage",1597,"L'Extase de Saint-François","Wadsworth Atheneum - Hartford",1602,"La Mise au Tombeau","Musée du Vatican",1604,"La Conversion de Saint-Paul","Eglise Santa Maria del Popolo - Rome","Baroque","   ",5,23,203,300,230,175,128,103,"A, B, C","Le Caravage","CARAVAGE","Le ","CARAVAGE  Le ","A, B, C"]
[9,"Pierre-Paul Rubens",1609,"Samson et Dalilah","National Gallery - Londres",1619,"Deux Satyres","Alte Pinakothek - Munich",1633,"Suzanne et les vieillards","National Museum - Stockholm","Baroque","   ",5,23,185,205,76,61,66,51,"P, Q, R","Pierre-Paul Rubens","RUBENS","Pierre-Paul ","RUBENS  Pierre-Paul ","A, B, C"]
[10,"Georges de La Tour",1640,"L'Education de la Vierge","Frick Collection - New York",1642,"La Madeleine à la Veilleuse","Musée du Louvre  - Paris",1645,"Saint Joseph Charpentier","Musée du Louvre  - Paris","Baroque","Classicisme",5,6,84,100,128,94,137,102,"D, E, F","Georges de La Tour","DE LA TOUR","Georges ","DE LA TOUR  Georges ","A, B, C"]
[11,"Charles Le Brun",1644,"La Déification d'Enée","Musée des Beaux-arts - Montréal",1647,"Le Sacrifice de Polyxène","MoMA - Ney York",1661,"Le Chancelier Séguier","Musée du Louvre - Paris","Classicisme","Baroque",{"$f":"VLOOKUP(L13,$J$49:$K$71,2)","v":6},{"$f":"IF(M13=\"   \",23,VLOOKUP(M13,$J$49:$K$71,2))","v":5},82,98,178,131,295,357,"K, L, M","Charles Le Brun","LE BRUN","Charles ","LE BRUN  Charles ","A, B, C"]
[12,"François Boucher",1740,"Le Triomphe de Vénus","Nationalmuseum - Stockholm",1745,"Vénus désarmant Cupidon","Collection privée",1751,"La Toilette de Vénus","Metropolitan Museum of Art - New York","Rococo","   ",20,23,130,162,97,80,108,85,"A, B, C","François Boucher","BOUCHER","François ","BOUCHER  François ","R, S, T"]
[13,"Thomas Gainsborough",1753,"John Plampin","National Gallery - Londres",1782,"Les Enfants Masham","Gemäldegalerien - Berlin",1787,"Giovanna Baccelli","National Gallery - Londres","Rococo","Romantisme",20,21,50,60,226,149,227,149,"G, H, I","Thomas Gainsborough","GAINSBOROUGH","Thomas ","GAINSBOROUGH  Thomas ","R, S, T"]
[14,"Francisco Goya",1777,"Le Parasol vert","Musée du Prado - Madrid",1778,"Enfants gonflant une vessie","Musée du Praqdo  - Madrid",1808,"Ferdinand VII à Cheval","Musée du Prado - Madrid","Néo-classicisme","Rococo",13,20,104,152,116,124,285,205,"G, H, I","Francisco Goya","GOYA","Francisco ","GOYA  Francisco ","M, N, P"]
[15,"Johann-Heinrich Füssli",1786,"Œdipe maudissant son fils, Polynices","National Gallery of Art - Washington",1790,"Le Cauchemar","Goethehaus - Frankfurt",1806,"Mad Kat","Goethemuseum - Frankfurt","Romantisme","   ",21,23,150,165,75,64,92,73,"D, E, F","Johann-Heinrich Füssli","FÜSSLI","Johann-Heinrich ","FÜSSLI  Johann-Heinrich ","R, S, T"]
[16,"Jean-Auguste-Dominique Ingres",1819,"Roger délivrant Angélique","Musée du Louvre - Paris",1827,"L'Apothéose d'Homère","Musée du Louvre  - Paris",1839,"L'Odalisque à l'Esclave","Walters Art Museum - Harvard","Néo-classicisme","   ",13,23,147,190,386,512,72,100,"G, H, I","Jean-Auguste-Dominique Ingres","INGRES","Jean-Auguste-Dominique ","INGRES  Jean-Auguste-Dominique ","M, N, P"]
[17,"Théodore Géricault",1817,"Scène de Déluge","Musée du Louvre - Paris",1817,"Course de Cheveaux","Walters Art Museum - Baltimore",1818,"Le Radeau de la Méduse","Musée du Louvre - Paris","Romantisme","   ",21,23,96,129,45,60,491,716,"G, H, I","Théodore Géricault","GÉRICAULT","Théodore ","GÉRICAULT  Théodore ","R, S, T"]
[18,"Caspar-David Friedrich",1820,"Barque fluviale dans le Brouillard","Wallraf-Richartz Museum - Cologne",1821,"Lever de lune sur la mer","Musée de l'Ermitage - Saint-Pétersbourg",1825,"Deux Hommes contemplant la Lune","MoMA - New York","Romantisme","   ",21,23,23,31,135,170,35,44,"D, E, F","Caspar-David Friedrich","FRIEDRICH","Caspar-David ","FRIEDRICH  Caspar-David ","R, S, T"]
[19,"Camille Corot",1830,"Honfleur, Calvaire","Metropolitan Museum - New York",1834,"Batelier derrière les arbres","Collection privée",1850,"Entrée du Bois de Ville-d'Avray","National Gallery of Scotland - Edimbourg","Réalisme","Romantisme",18,21,30,40,100,82,50,44,"A, B, C","Camille Corot","COROT","Camille ","COROT  Camille ","R, S, T"]
[20,"Honoré Daumier",1860,"Le Soulèvement","National Gallery of Art - Washington",1866,"Don Quijote et Sancho Panza","Alte Nationalgalerie - Berlin",1868,"Déjeuner à la campagne","National Museum of Wales - Cardiff","Réalisme","Impressionnisme",18,10,88,113,78,102,26,34,"D, E, F","Honoré Daumier","DAUMIER","Honoré ","DAUMIER  Honoré ","R, S, T"]
[21,"Jean-François Millet",1857,"Les Glaneuses","Musée d'Orsay - Paris",1859,"L'Angelus","Musée d'Orsay - Paris",1861,"Les planteurs de pommes de terre","Fine Att Museum - Boston","Réalisme","   ",18,23,84,110,54,66,83,101,"K, L, M","Jean-François Millet","MILLET","Jean-François ","MILLET  Jean-François ","R, S, T"]
[22,"Berthe Morisot",1875,"Dans la salle à Manger","Natioanl Gallery - Washington",1881,"Après déjeuner","Collection privée",1884,"Rose Trémière","Musée Marnottan - Paris","Impressionnisme","   ",10,23,62,50,81,100,65,54,"K, L, M","Berthe Morisot","MORISOT","Berthe ","MORISOT  Berthe ","F, I,  K"]
[23,"Camille Pissaro",1878,"Le Jardin potager à l'Hermitage","Musée d'Orsay",1890,"Hyde Park","Fuji Art Museum - Tokyo ",1891,"Fenaison à Eragny","Collection privée","Impressionnisme","   ",10,23,55,46,54,65,47,39,"P, Q, R","Camille Pissaro","PISSARO","Camille ","PISSARO  Camille ","F, I,  K"]
[24,"Theodore Robinson",1888,"La Vachère","Smithsonian American Art - Washington",1891,"Le Pont de Giverny","Museum of Fine Arts - Houston",1891,"La Roche Guyon","Brooklyn Museum - New York","Impressionnisme","   ",10,23,77,51,40,49,26,35,"P, Q, R","Theodore Robinson","ROBINSON","Theodore ","ROBINSON  Theodore ","F, I,  K"]
[25,"Paul Signac",1892,"Jeunes Provençales au Puits","Musée d'Orsay - Paris",1894,"Au Temps d'Harmonie","Mairie de Montreuil",1896,"Le Clocher de Saint-Tropez","Fondation Bemberg - Toulouse","Pointillisme","postimpressionnisme",14,15,195,131,310,410,82,64,"S, T, V","Paul Signac","SIGNAC","Paul ","SIGNAC  Paul ","M, N, P"]
[26,"Gustav Klimt",1907,"Portrait d'Adèle Bloch-Bauer","Famille Block-Bauer",1908,"Le Baiser","Osterreichische Galerie Belvédère - Vienne",1910,"L'Enlacement","MAK - Vienne","Art nouveau","Symbolisme  ",4,22,138,138,180,180,195,120,"K, L, M","Gustav Klimt","KLIMT","Gustav ","KLIMT  Gustav ","Art ?"]
[27,"Edvard Munch",1892,"Désespoir","Thielski Galleriet - Stockholm",1893,"Le Cri","National Gallery - Oslo",1894,"Anxiété","Munch Museum - Oslo","Expressionnisme","Symbolisme",8,22,100,81,91,74,94,74,"K, L, M","Edvard Munch","MUNCH","Edvard ","MUNCH  Edvard ","E, F, I"]
[28,"Ernest-Ludwig Kirchner",1912,"Chasseur de Mouettes","Musée Städel - Francfort-sur-le-Main",1913,"Trois Baigneuses","Galerie d'art de Nouvelle-Galles - Syndey",1914,"Place Potsdam","Neue Nationalgalerie - Berlin","Expressionnisme","Art moderne",8,3,118,89,198,148,200,150,"K, L, M","Ernest-Ludwig Kirchner","KIRCHNER","Ernest-Ludwig ","KIRCHNER  Ernest-Ludwig ","E, F, I"]
[29,"Félix Vallotton",1908,"L'Enlèvement d'Europe","Musée Beaux-Arts - Berne",1922,"Route à Saint-Paul","Tate Britain - Londres",1923,"Nuit tombante sur la Loire","Collection privée","Art nouveau","   ",4,23,130,162,81,65,61,76,"S, T, V","Félix Vallotton","VALLOTTON","Félix ","VALLOTTON  Félix ","Art ?"]
[30,"Vassily Kandinsky",1916,"Une voix inconnue","Centre Georges Pompidou - Paris",1923,"Cercles encerclés","Museum of Art - Philadelphia",1923,"Sur Blanc II","Centre Georges Pompidou - Paris","Art abstrait","Art moderne",1,3,90,60,105,91,99,96,"K, L, M","Vassily Kandinsky","KANDINSKY","Vassily ","KANDINSKY  Vassily ","Art ?"]
[31,"René Auberjonois",1913,"La Course au Clocher","Stiftung fur Kunst - Winterthur",1931,"Italienne à la Fontaine","Musée Athénéé- Genève",1938,"Couple de vendangeurs","Fondation de l'Hermitage - Lausanne","Postimpressionnisme","   ",15,23,50,38,92,73,153,124,"A, B, C","René Auberjonois","AUBERJONOIS","René ","AUBERJONOIS  René ","M, N, P"]
[32,"Maurice de Vlaminck",1906,"La Seine é Chatou","Golman Collection",1906,"Voiles blanches à Chatou","Art Gallery of New Wales - Sydney",1933,"Chaumières sur la route","Centre Georges Pompidou - Paris","Fauvisme","Postimpressionnisme",9,15,82,101,58,71,73,93,"D, E, F","Maurice de Vlaminck","DE VLAMINCK","Maurice ","DE VLAMINCK  Maurice ","E, F, I"]
[33,"Fernand Léger",1914,"La Sortie des Ballets Russes","Musée Kröller-Müller - Otterlo (P.-B.)",1917,"La Partie de Cartes","MoMA - Ney York",1918,"Les Hélices 2e","MoMA - Ney York","Cubisme","   ",7,23,137,100,129,193,81,66,"K, L, M","Fernand Léger","LÉGER","Fernand ","LÉGER  Fernand ","A, B, C"]
[34,"Juan Gris",1911,"Maison à Paris","MoMA - Ney York",1911,"Juan Ligua","MoMA - Ney York",1913,"Guitare et Pipe","Museum of Art - Dallas","Cubisme","   ",7,23,52,34,55,46,65,50,"G, H, I","Juan Gris","GRIS","Juan ","GRIS  Juan ","A, B, C"]
[35,"Max Ernst",1921,"L'Éléphant de Célèbres","Tate - Londres",1924,"Deux Enfants menacés par un Rossignol","MoMA - New York",1926,"Forêt et Soleil","Collection privée - Bruxelles","Surréalisme","   ",22,23,45,39,59,50,65,54,"D, E, F","Max Ernst","ERNST","Max ","ERNST  Max ","R, S, T"]
[36,"Yves Tanguy",1940,"La Lumière, la Solitude","Collection privée - Allemagne",1942,"La Traversée de la Passion","Collection Albright-Knox - New York",1943,"Mon cœur chemin de mes mots","Institute of Art - Minneapolis","Surréalisme","   ",22,23,66,51,102,89,123,110,"S, T, V","Yves Tanguy","TANGUY","Yves ","TANGUY  Yves ","R, S, T"]
[37,"Jackson Pollock",1943,"The She Wolf","MoMa - New York",1945,"There were Seven in Eight","MoMa - New York",1953,"Ocean Greyness","Museum Guggenheim - New York","Art abstrait","Art brut",1,2,106,170,109,259,147,229,"P, Q, R","Jackson Pollock","POLLOCK","Jackson ","POLLOCK  Jackson ","Art ?"]
[38,"Jean Dubuffet",1962,"L'Instant propice","Museum Guggenheim - New York",1963,"Mouchon Berloque","Fondation Dubuffet - Paris",1963,"Banque des Équivoques","Musle Arts décoratifs - Paris","Art brut","Art abstrait",2,1,200,165,114,146,150,195,"D, E, F","Jean Dubuffet","DUBUFFET","Jean ","DUBUFFET  Jean ","Art ?"]
[39,"Jean Solombre",1987,"L'Apprentissage de la Nuit","Gravure à 120 ex.",1988,"À Marée Haute","Gravure à 90 ex.",1989,"Magnifique Estuaire","Gravure à 90 ex.","Art moderne","Surréalisme",3,22,39,45,59,50,39,45,"S, T, V","Jean Solombre","SOLOMBRE","Jean ","SOLOMBRE  Jean ","Art ?"]
[40,"Vladimir Volegov",2015,"Costa Brava Dream","Collection privée",2006,"Proche de la Vase","Collection privée",2014,"Sac en Corail","Collection privée","Kitsch","   ",11,23,92,73,102,76,65,92,"S, T, V","Vladimir Volegov","VOLEGOV","Vladimir ","VOLEGOV  Vladimir ","F, I,  K"]
[41,"     ","   ","    ","   ","   ","    ","   ",null,null,null,"   ","   ",null,null,null,null,null,null,null,null,null,"     ","    "]
[42,"   ","   ","   ","   ","   ","   ","   ","   ","   ","   ","   ","   "]
[43,null,null,null,null,null,"   ","   ",null,"    ",null,null,null,null,null,"hauteur","largeur","hauteur","largeur","hauteur","largeur"]
[44,{"$f":"\"     \"","v":"     "},{"$f":"\"     \"","v":"     "},"     ","     ","     ","     ","   ","     ","     ","     ","     ","     ","   ","   ","   ","   ","   ","   ","   ","   ","   ","\" = B3 \"","Concanétation"]
[null,null,null,null,null,null,null,null,null,null,null,null,null,"Partie manuelle",null,null,null,null,null,null,null,null,"Zone automatique"]
[null,"alpha - Tableau manuel",null,"Correspondance liste Musée et liste Menu déroulant",null,null,null,null,"Liste mouv"]
[0,"   ",null,"   ","   ","   ",null,null,0,"   ",0,null,null,null,null,null,null,null,null,null,null,null,"Liste Musée",null,null,"Liste alpahbétique"]
[1,31,{"$f":"\"      A     \"","v":"      A     "},{"$f":"C50&E50","v":"      A     AUBERJONOIS  René "},"AUBERJONOIS  René ",null,null,null,1,"Art abstrait",1,"Art ?",null,null,null,null,null,null,null,null,null,1,{"$f":"Z3","v":"GIOTTO  Bondone "},null,31,"AUBERJONOIS  René "]
[2,2,{"$f":"\"      B      \"","v":"      B      "},{"$f":"C51&E51","v":"      B      BELLINI  Giovanni "},"BELLINI  Giovanni ",null,null,null,2,"Art brut",2,"Art ?",null,null,null,null,null,null,null,null,null,2,{"$f":"Z4","v":"BELLINI  Giovanni "},null,2,"BELLINI  Giovanni "]
[3,3,{"$f":"\"              \"","v":"              "},"              BOSCH  Jérôme ","BOSCH  Jérôme ",null,null,null,3,"Art moderne",3,"Art ?",null,null,null,null,null,null,null,null,null,3,"BOSCH  Jérôme ",null,3,"BOSCH  Jérôme "]
[4,12,{"$f":"\"              \"","v":"              "},"              BOUCHER  François ","BOUCHER  François ",null,null,null,4,"Art nouveau",4,"Art ?",null,null,null,null,null,null,null,null,null,4,"TITIEN  Le ",null,12,"BOUCHER  François "]
[5,5,{"$f":"\"              \"","v":"              "},{"$f":"C54&E54","v":"              BRUEGHEL  Pieter "},"BRUEGHEL  Pieter ",null,null,null,5,"Baroque",5,"A, B, C",null,null,null,null,null,null,null,null,null,5,"BRUEGHEL  Pieter ",null,5,"BRUEGHEL  Pieter "]
[6,8,{"$f":"\"      C     \"","v":"      C     "},{"$f":"C55&E55","v":"      C     CARAVAGE  Le "},"CARAVAGE  Le ",null,null,null,6,"Classicisme",6,"A, B, C",null,null,null,null,null,null,null,null,null,6,"GRECO  Le ",null,8,"CARAVAGE  Le "]
[7,19,{"$f":"\"              \"","v":"              "},"              COROT  Camille","COROT  Camille",null,null,null,7,"Cubisme",7,"A, B, C",null,null,null,null,null,null,null,null,null,7,"TINTORET  Le ",null,19,"COROT  Camille"]
[8,20,{"$f":"\"      D     \"","v":"      D     "},"      D     DAUMIER  Honoré ","DAUMIER  Honoré ",null,null,null,8,"Expressionnisme",8,"E, F, I",null,null,null,null,null,null,null,null,null,8,"CARAVAGE  Le ",null,20,"DAUMIER  Honoré "]
[9,10,{"$f":"\"              \"","v":"              "},"              DE LA TOUR  Georges ","DE LA TOUR  Georges ",null,null,null,9,"Fauvisme",9,"E, F, I",null,null,null,null,null,null,null,null,null,9,"RUBENS  Pierre-Paul ",null,10,"DE LA TOUR  Georges "]
[10,32,{"$f":"\"              \"","v":"              "},"              DE VLAMINCK  Maurice ","DE VLAMINCK  Maurice ",null,null,null,10,"Impressionnisme",10,"F, I,  K",null,null,null,null,null,null,null,null,null,10,"DE LA TOUR  Georges ",null,32,"DE VLAMINCK  Maurice "]
[11,38,{"$f":"\"              \"","v":"              "},"              DUBUFFET  Jean ","DUBUFFET  Jean ",null,null,null,11,"Kitsch",11,"F, I,  K",null,null,null,null,null,null,null,null,null,11,"LE BRUN  Charles ",null,38,"DUBUFFET  Jean "]
[12,35,{"$f":"\"      E      \"","v":"      E      "},"      E      ERNST  Max ","ERNST  Max ",null,null,null,12,"Maniérisme",12,"M, N, P",null,null,null,null,null,null,null,null,null,12,"BOUCHER  François ",null,35,"ERNST  Max "]
[13,18,{"$f":"\"      F      \"","v":"      F      "},"      F      FRIEDRICH  Caspar-David ","FRIEDRICH  Caspar-David ",null,null,null,13,"Néo-classicisme",13,"M, N, P",null,null,null,null,null,null,null,null,null,13,"GAINSBOROUGH  Thomas ",null,18,"FRIEDRICH  Caspar-David "]
[14,15,{"$f":"\"              \"","v":"              "},"              FÜSSLI  Johann-Heinrich ","FÜSSLI  Johann-Heinrich ",null,null,null,14,"Pointillisme",14,"M, N, P",null,null,null,null,null,null,null,null,null,14,"GOYA  Francisco ",null,15,"FÜSSLI  Johann-Heinrich "]
[15,13,{"$f":"\"      G     \"","v":"      G     "},"      G     GAINSBOROUGH  Thomas ","GAINSBOROUGH  Thomas ",null,null,null,15,"Postimpressionnisme",15,"M, N, P",null,null,null,null,null,null,null,null,null,15,"FÜSSLI  Johann-Heinrich ",null,13,"GAINSBOROUGH  Thomas "]
[16,17,{"$f":"\"              \"","v":"              "},"              GÉRICAULT  Théodore ","GÉRICAULT  Théodore ",null,null,null,16,"Pré-Renaissance",16,"M, N, P",null,null,null,null,null,null,null,null,null,16,"INGRES  Jean-Auguste-Dominique ",null,17,"GÉRICAULT  Théodore "]
[17,1,{"$f":"\"              \"","v":"              "},"              GIOTTO  Bondone ","GIOTTO  Bondone ",null,null,null,17,"Préromantisme",17,"M, N, P",null,null,null,null,null,null,null,null,null,17,"GÉRICAULT  Théodore ",null,1,"GIOTTO  Bondone "]
[18,14,"              ","              GOYA  Francisco ","GOYA  Francisco ",null,null,null,18,"Réalisme",18,"R, S, T",null,null,null,null,null,null,null,null,null,18,"FRIEDRICH  Caspar-David ",null,14,"GOYA  Francisco "]
[19,6,"              ","              GRECO  Le ","GRECO  Le ",null,null,null,19,"Renaissance",19,"R, S, T",null,null,null,null,null,null,null,null,null,19,"COROT  Camille ",null,6,"GRECO  Le "]
[20,34,"              ","              GRIS  Juan ","GRIS  Juan ",null,null,null,20,"Rococo",20,"R, S, T",null,null,null,null,null,null,null,null,null,20,"DAUMIER  Honoré ",null,34,"GRIS  Juan "]
[21,16,{"$f":"\"       I      \"","v":"       I      "},"       I      INGRES  Jean-Auguste-Dominique ","INGRES  Jean-Auguste-Dominique ",null,null,null,21,"Romantisme",21,"R, S, T",null,null,null,null,null,null,null,null,null,21,"MILLET  Jean-François ",null,16,"INGRES  Jean-Auguste-Dominique "]
[22,30,{"$f":"\"      K      \"","v":"      K      "},"      K      KANDINSKY  Vassily ","KANDINSKY  Vassily ",null,null,null,22,"Surréalisme",22,"R, S, T",null,null,null,null,null,null,null,null,null,22,"MORISOT  Berthe ",null,30,"KANDINSKY  Vassily "]
[23,28,{"$f":"\"              \"","v":"              "},"              KIRCHNER  Ernest-Ludwig ","KIRCHNER  Ernest-Ludwig ",null,null,null,23,null,23,null,null,null,null,null,null,null,null,null,null,23,"PISSARO  Camille ",null,28,"KIRCHNER  Ernest-Ludwig "]
[24,26,"              ","              KLIMT  Gustav ","KLIMT  Gustav ",null,null,null,null,null,null,null,null,null,null,null,null,null,null,null,null,24,"ROBINSON  Theodore ",null,26,"KLIMT  Gustav "]
[25,11,{"$f":"\"      L      \"","v":"      L      "},"      L      LE BRUN  Charles ","LE BRUN  Charles ",null,null,null,null,null,null,null,null,null,null,null,null,null,null,null,null,25,"SIGNAC  Paul ",null,11,"LE BRUN  Charles "]
[26,33,{"$f":"\"              \"","v":"              "},"              LÉGER  Fernand ","LÉGER  Fernand ",null,null,null,null,"   ",null,null,null,null,null,null,null,null,null,null,null,26,"KLIMT  Gustav ",null,33,"LÉGER  Fernand "]
[27,21,{"$f":"\"     M      \"","v":"     M      "},"     M      MILLET  Jean-François ","MILLET  Jean-François ",null,null,null,{"$f":"\"      A     \"","v":"      A     "},{"$f":"I76&J50","v":"      A     Art abstrait"},null,null,null,null,null,null,null,null,null,null,null,27,"MUNCH  Edvard ",null,21,"MILLET  Jean-François "]
[28,22,{"$f":"\"              \"","v":"              "},"              MORISOT  Berthe ","MORISOT  Berthe ",null,null,null,{"$f":"\"              \"","v":"              "},{"$f":"I77&J51","v":"              Art brut"},null,null,null,null,null,null,null,null,null,null,null,28,"KIRCHNER  Ernest-Ludwig ",null,22,"MORISOT  Berthe "]
[29,27,{"$f":"\"              \"","v":"              "},"              MUNCH  Edvard ","MUNCH  Edvard ",null,null,null,"              ","              Art moderne",null,null,null,null,null,null,null,null,null,null,null,29,"VALLOTTON  Félix ",null,27,"MUNCH  Edvard "]
[30,23,{"$f":"\"      P      \"","v":"      P      "},"      P      PISSARO  Camille ","PISSARO  Camille ",null,null,null,"              ","              Art nouveau",null,null,null,null,null,null,null,null,null,null,null,30,"KANDINSKY  Vassily ",null,23,"PISSARO  Camille "]
[31,37,{"$f":"\"              \"","v":"              "},"              POLLOCK  Jackson ","POLLOCK  Jackson ",null,null,null,{"$f":"\"      B      \"","v":"      B      "},"      B      Baroque",null,null,null,null,null,null,null,null,null,null,null,31,"AUBERJONOIS  René ",null,37,"POLLOCK  Jackson "]
[32,24,{"$f":"\"      R      \"","v":"      R      "},"      R      ROBINSON  Theodore ","ROBINSON  Theodore ",null,null,null,{"$f":"\"      C     \"","v":"      C     "},"      C     Classicisme",null,null,null,null,null,null,null,null,null,null,null,32,"DE VLAMINCK  Maurice ",null,24,"ROBINSON  Theodore "]
[33,9,{"$f":"\"              \"","v":"              "},"              RUBENS  Pierre-Paul ","RUBENS  Pierre-Paul ",null,null,null,{"$f":"\"              \"","v":"              "},"              Cubisme",null,null,null,null,null,null,null,null,null,null,null,33,"LÉGER  Fernand ",null,9,"RUBENS  Pierre-Paul "]
[34,25,{"$f":"\"      S      \"","v":"      S      "},"      S      SIGNAC  Paul ","SIGNAC  Paul ",null,null,null,{"$f":"\"      E      \"","v":"      E      "},"      E      Expressionnisme",null,null,null,null,null,null,null,null,null,null,null,34,"GRIS  Juan ",null,25,"SIGNAC  Paul "]
[35,39,{"$f":"\"              \"","v":"              "},"              SOLOMBRE  Jean ","SOLOMBRE  Jean ",null,null,null,{"$f":"\"      F      \"","v":"      F      "},"      F      Fauvisme",null,null,null,null,null,null,null,null,null,null,null,35,"ERNST  Max ",null,39,"SOLOMBRE  Jean "]
[36,36,{"$f":"\"      T      \"","v":"      T      "},"      T      TANGUY  Yves ","TANGUY  Yves ",null,null,null,{"$f":"\"      I       \"","v":"      I       "},"      I       Impressionnisme",null,null,null,null,null,null,null,null,null,null,null,36,"TANGUY  Yves ",null,36,"TANGUY  Yves "]
[37,7,{"$f":"\"              \"","v":"              "},"              TINTORET  Le ","TINTORET  Le ",null,null,null,{"$f":"\"      K      \"","v":"      K      "},"      K      Kitsch",null,null,null,null,null,null,null,null,null,null,null,37,"POLLOCK  Jackson ",null,7,"TINTORET  Le "]
[38,4,{"$f":"\"              \"","v":"              "},"              TITIEN  Le ","TITIEN  Le ",null,null,null,{"$f":"\"     M      \"","v":"     M      "},"     M      Maniérisme",null,null,null,null,null,null,null,null,null,null,null,38,"DUBUFFET  Jean ",null,4,"TITIEN  Le "]
[39,29,{"$f":"\"      V      \"","v":"      V      "},"      V      VALLOTTON  Félix ","VALLOTTON  Félix ",null,null,null,{"$f":"\"     N      \"","v":"     N      "},"     N      Néo-classicisme",null,null,null,null,null,null,null,null,null,null,null,39,"SOLOMBRE  Jean ",null,29,"VALLOTTON  Félix "]
[40,40,{"$f":"\"              \"","v":"              "},"              VOLEGOV  Vladimir ","VOLEGOV  Vladimir ",null,null,null,{"$f":"\"      P      \"","v":"      P      "},"      P      Pointillisme",null,null,null,null,null,null,null,null,null,null,null,40,"VOLEGOV  Vladimir ",null,40,"VOLEGOV  Vladimir "]
[null,null,"              ",null,null,null,null,null,{"$f":"\"              \"","v":"              "},"              Postimpressionnisme"]
[null,null,null,null,null,null,null,null,"              ","              Pré-Renaissance"]
[null,null,null,null,null,null,null,null,"              ","              Préromantisme"]
[null,null,null,null,null,null,null,null,{"$f":"\"      R      \"","v":"      R      "},"      R      Réalisme"]
[null,null,null,null,null,null,null,null,{"$f":"\"              \"","v":"              "},"              Renaissance"]
[null,null,null,null,null,null,null,null,"              ","              Rococo"]
[null,null,null,null,null,null,null,null,"              ","              Romantisme"]
[null,null,null,null,null,null,null,null,{"$f":"\"      S      \"","v":"      S      "},"      S      Surréalisme"]
[null,null,null,null,null,null,null,null,{"$f":"\"              \"","v":"              "}]